Cogmind - Beta 12 X2 @@@ ROGUE MODE // 2022.12.16 @ 13:16:41 // Winter2019/RPGLIKE Player: Terminus Result: Destroyed 0B10! Performance ------------- Evolutions (9) 4500 Regions Visited (37) 7400 Robots Destroyed (1174) 5870 Value Destroyed (51149) 51149 Prototype IDs (125) 2500 Alien Tech Used (9) 1800 Bonus (59350) 59350 TOTAL SCORE: 132569 Bonus ------- Triggered High Security 500 High Alert Combat Kills 22759 Follower Combat Kills 1163 Entered Garrisons 200 Network Hubs Disabled 600 Aligned with FarCom 300 Met Imprinter 300 Triggered Deep Caves Wall 500 Met Warlord at Base 500 MAIN.C Attacked Warlord 500 Warlord Defense Kills 3018 A7 Reached Mainframe 300 Met R17 at Cetus 500 Used Core Reset Matrix 3000 Met Warlord at Research 2000 Scanned by Researcher 500 Met Sigix 2000 Escaped with Sigix 5000 Destroyed MAIN.C Guards 500 Met MAIN.C 5000 Destroyed MAIN.C Shell 5000 Destroyed MAIN.C 10000 Met Warlord at Command 2000 Win 3000 Friendly Fire -9790 Cogmind --------- Core Integrity 1095/1200 Matter 277/300 Energy 2014/2016 System Corruption 1% Temperature Cool (4) Movement Hovering (46) Location Tau Ceti IV Orbit Parts ------- > --- POWER (3) -------- Zero-point Reactor Quantum-Zero-point Reactor > --- PROPULSION (6) --- Hovering Antigrav-ED Exoskeleton Improved Antigrav System Improved Linear Gravjet > --- UTILITY (13) ----- Armored Scrap Engine Advanced Cooling System Advanced Cooling System 2N-1CE's Frost Array Experimental Energy Well Experimental Targeting Computer Experimental Targeting Computer Experimental Targeting Computer Experimental Core Analyzer Experimental Core Analyzer Advanced Force Field System Mapper > --- WEAPON (4) ------- Multirail Heavy Slashing Rail Construct/C > --- INVENTORY (7) ---- Zero-point Reactor Advanced Particle Charger High-powered Transdimensional Reconstructor Sigix Containment Pod Peak State ------------ > --- POWER ------------ Graviton Reactor Quantum-Zero-point Reactor > --- PROPULSION ------- Hovering Antigrav-ED Exoskeleton Improved Antigrav System > --- UTILITY ---------- Armored Scrap Engine Advanced Cooling System Advanced Cooling System 2N-1CE's Frost Array Advanced Signal Interpreter Experimental Targeting Computer Experimental Targeting Computer Experimental Core Analyzer Quantum Capacitor Advanced Force Field System Mapper > --- WEAPON ----------- Multirail Heavy Slashing Rail Construct/C > --- INVENTORY -------- Experimental Energy Well Experimental Core Analyzer High-powered Transdimensional Reconstructor Sigix Sheargun Multirail Sigix Containment Pod [Rating: 225] Favorites ----------- Power Quantum-Zero-point Reactor Engine Ion Engine Power Core Reinforced Fission Core Reactor Quantum-Zero-point Reactor Propulsion Combat Airjet Leg Aluminum Leg Hover Unit Combat Airjet Flight Unit Electron Diverter Utility Experimental Targeting Computer Device Armored Scrap Engine Storage Experimental Energy Well Processor Experimental Targeting Computer Hackware System Mapper Protection Improved Light Armor Plating Artifact Microwarp Drive Weapon 8R-AWN's Boregun Energy Gun Medium Laser Energy Cannon Beam Cannon Ballistic Gun 8R-AWN's Boregun Ballistic Cannon Heavy Slashing Rail Construct/C Launcher Neutron Missile Launcher Special Weapon Improved Plasma Cutter Build | -11 -10 -10 -9 -9 -9 -8 -8 -8 -7 -7 -7 -7 -6 -6 -6 -6 -6 -5 -5 -5 -5 -5 -5 -5 -4 -4 -4 -4 -4 -4 -3 -3 -2 -2 -2 -1 -1 ------- Run | Scr Mat Min Mat Min Exi Min Mat Gar Fac Was Fac Sto Fac Low Low Zio Dee Pro Fac Was Fac Upp Upp War Pro Fac Ext Cet Arc Hub Res Tes Res Qua Sec Acc Com Slots Evolved 21 | 4 1 2 4 . . . 3 . 1 . 1 . . . . . . . 2 . . . . 1 . . 1 . . . 1 . . . . . . Power 2 | . . . . . . . 1 . . . . . . . . . . . 1 . . . . . . . . . . . . . . . . . . Propulsion 5 | 1 . 1 2 . . . . . . . 1 . . . . . . . . . . . . . . . . . . . . . . . . . . Utility 12 | 2 . 1 2 . . . 2 . 1 . . . . . . . . . 1 . . . . 1 . . 1 . . . 1 . . . . . . Weapon 2 | 1 1 . . . . . . . . . . . . . . . . . . . . . . . . . . . . . . . . . . . . Parts Attached 233 | 8 14 3 22 3 14 . 8 2 5 2 10 4 3 1 4 . 12 . 16 2 9 . 2 17 . 1 4 2 . 2 1 14 3 14 18 8 5 Power 19 | 1 2 . 1 . 1 . 1 1 2 . 1 . . . . . . . 1 . . . . . . . . 1 . . . 1 . 1 1 2 2 Engine 5 | 1 2 . 1 . . . 1 . . . . . . . . . . . . . . . . . . . . . . . . . . . . . . Core 7 | . . . . . 1 . . 1 2 . 1 . . . . . . . 1 . . . . . . . . . . . . . . . 1 . . Reactor 7 | . . . . . . . . . . . . . . . . . . . . . . . . . . . . 1 . . . 1 . 1 . 2 2 Propulsion 40 | 3 2 . 5 1 1 . . . 1 1 3 2 3 . . . 3 . 1 . 5 . . 4 . . . . . . . . . 2 1 2 . Treads . | . . . . . . . . . . . . . . . . . . . . . . . . . . . . . . . . . . . . . . Leg 2 | 2 . . . . . . . . . . . . . . . . . . . . . . . . . . . . . . . . . . . . . Wheel . | . . . . . . . . . . . . . . . . . . . . . . . . . . . . . . . . . . . . . . Hover 36 | 1 2 . 5 1 1 . . . 1 1 3 2 3 . . . 3 . 1 . 4 . . 3 . . . . . . . . . 2 1 2 . Flight 2 | . . . . . . . . . . . . . . . . . . . . . 1 . . 1 . . . . . . . . . . . . . Utility 112 | . 4 3 11 2 9 . 3 1 2 1 6 2 . 1 4 . 6 . 3 2 . . . 9 . . 2 1 . 1 1 11 2 6 14 2 3 Device 71 | . 3 3 4 . 7 . 2 . 1 1 5 2 . 1 2 . 5 . 1 2 . . . 5 . . . . . . 1 5 2 6 12 . 1 Storage 8 | . . . . . . . . . . . . . . . . . . . . . . . . 1 . . . . . . . 4 . . 1 1 1 Processor 17 | . . . 2 . 2 . 1 . 1 . 1 . . . 1 . . . 2 . . . . 1 . . 2 . . 1 . 1 . . . 1 1 Hackware 7 | . 1 . . . . . . 1 . . . . . . 1 . . . . . . . . 2 . . . 1 . . . 1 . . . . . Protection 8 | . . . 5 2 . . . . . . . . . . . . 1 . . . . . . . . . . . . . . . . . . . . Artifact 1 | . . . . . . . . . . . . . . . . . . . . . . . . . . . . . . . . . . . 1 . . Weapon 62 | 4 6 . 5 . 3 . 4 . . . . . . . . . 3 . 11 . 4 . 2 4 . 1 2 . . 1 . 2 1 5 2 2 . Energy Gun 15 | 4 . . . . . . . . . . . . . . . . 2 . 2 . 4 . . 2 . . . . . . . . . . 1 . . Energy Cannon 9 | . 1 . 1 . . . . . . . . . . . . . . . . . . . . . . . . . . 1 . 1 1 3 . 1 . Ballistic Gun 18 | . 3 . 3 . 2 . 4 . . . . . . . . . 1 . 1 . . . . 1 . 1 . . . . . . . . 1 1 . Ballistic Cannon 2 | . . . . . . . . . . . . . . . . . . . 1 . . . . 1 . . . . . . . . . . . . . Launcher 11 | . 2 . 1 . . . . . . . . . . . . . . . 6 . . . 2 . . . . . . . . . . . . . . Special Weapon 7 | . . . . . 1 . . . . . . . . . . . . . 1 . . . . . . . 2 . . . . 1 . 2 . . . Impact Weapon . | . . . . . . . . . . . . . . . . . . . . . . . . . . . . . . . . . . . . . . Slashing Weapon . | . . . . . . . . . . . . . . . . . . . . . . . . . . . . . . . . . . . . . . Piercing Weapon . | . . . . . . . . . . . . . . . . . . . . . . . . . . . . . . . . . . . . . . Special Melee Weapon . | . . . . . . . . . . . . . . . . . . . . . . . . . . . . . . . . . . . . . . Unidentified Prototypes 56 | . . 1 . . 7 . 1 . 1 . . 1 . 1 . . 5 . 5 1 2 . . 11 . 1 . 1 . 1 . 7 1 3 3 2 1 Parts Lost 11 | 1 . . . . 1 . . . . . 1 . . . 2 . . . 1 . . . . . . . . . . . 2 . . 1 . 2 . Power 1 | . . . . . . . . . . . . . . . . . . . . . . . . . . . . . . . 1 . . . . . . Propulsion 3 | . . . . . . . . . . . . . . . . . . . 1 . . . . . . . . . . . . . . 1 . 1 . Utility 3 | . . . . . 1 . . . . . 1 . . . 1 . . . . . . . . . . . . . . . . . . . . . . Weapon 4 | 1 . . . . . . . . . . . . . . 1 . . . . . . . . . . . . . . . 1 . . . . 1 . Highest Loss Streak 2 | 1 . . . . 1 . . . . . 1 . . . 2 . . . 1 . . . . . . . . . . . 2 . . 1 . 2 . To Critical Strikes 1 | . . . . . . . . . . . . . . . . . . . . . . . . . . . . . . . . . . 1 . . . Average Slot Usage (%) 74 | . 93 81 93 100 95 93 90 94 89 93 83 75 68 62 59 61 61 61 53 53 55 65 65 59 58 58 63 64 68 65 60 60 57 61 63 66 72 Engine 2 | . 11 9 6 6 3 . 3 4 . . . . 2 4 4 4 4 4 1 . . . . . . . . . . . . . . . . . . Core 2 | . . . . . 2 6 5 5 10 10 8 4 2 . . . . . 2 4 4 4 4 1 . . . . . . . . . . . . . Reactor 2 | . . . . . . . . . . . 1 4 . . . . . . . . . . . 2 4 4 4 4 8 8 7 7 7 7 7 7 6 Hover 12 | . 18 18 25 33 31 26 22 22 21 25 11 8 11 14 14 14 14 14 5 4 6 13 13 4 . . . . . . . 2 3 3 6 7 11 Device 18 | . 20 18 18 13 13 20 21 22 21 21 20 20 20 19 18 19 19 19 17 17 17 17 17 16 16 16 16 16 16 16 15 17 19 18 19 22 19 Processor 13 | . . . 1 6 7 13 12 16 14 15 19 20 20 19 14 14 14 14 15 17 17 17 17 16 16 16 19 20 20 20 19 16 15 15 15 15 19 Hackware 4 | . 7 9 6 6 6 6 5 5 5 5 . . . . 2 4 4 4 4 4 4 4 4 7 8 8 8 8 8 8 7 7 3 3 3 3 3 Protection 1 | . . . 10 13 8 . . . . . . . . . . . . . . . . . . . . . . . . . . . . . . . . Energy Gun 1 | . 11 9 1 . . . . . . . . . . . . . 2 4 1 1 3 8 8 5 4 4 4 4 4 4 . . . . . . . Energy Cannon 1 | . 11 9 1 . . . . . . . . . . 4 4 4 2 . 2 . . . . . . . . . . . . 2 3 5 3 2 . Ballistic Gun 8 | . 6 9 17 20 19 20 16 16 15 15 15 15 9 . . . . . . . . . . 1 4 4 4 4 4 4 4 . . . . 2 3 Naked Turns . | . . . . . . . . . . . . . . . . . . . . . . . . . . . . . . . . . . . . . . Heaviest Build 90 | 9 15 14 31 28 41 39 48 54 54 54 55 49 34 34 29 29 29 24 40 31 39 34 45 43 37 37 38 50 50 69 49 50 66 80 90 90 81 Greatest Support 93 | 20 24 24 40 32 56 56 56 56 56 55 60 62 37 37 37 37 37 37 37 37 71 37 37 55 55 55 55 55 55 55 55 92 92 93 93 93 87 Greatest Overweight (x) 2 | 2 . . . . . . . . 1 . 2 1 2 . . . . . 1 . 1 . 1 1 . . . . . 1 . . . 1 1 1 . Average Overweight (x) . | . . . . . . . . . . . 1 . . . . . . . . . . . . . . . . . . . . . . . . . . Largest Inventory Capacity 7 | 1 2 3 5 5 6 6 6 6 6 6 6 6 6 6 6 6 6 6 6 6 6 6 6 6 6 6 6 6 6 6 6 6 6 6 7 7 7 Average Capacity 5 | . 1 2 4 5 5 6 6 6 6 6 6 6 6 6 6 6 6 6 6 6 6 6 6 6 6 6 6 6 6 6 6 6 6 6 6 7 7 Most Carried 7 | 1 2 3 5 5 6 6 6 6 6 6 6 6 6 . 2 3 6 6 6 6 6 6 6 6 6 6 6 6 6 6 6 6 6 6 7 7 6 Average Carried 4 | . 1 2 4 4 4 6 6 6 6 6 6 6 5 . . 2 4 4 5 4 4 6 5 5 6 5 5 6 6 5 3 5 5 5 6 6 4 Final Capacity 7 | 1 2 3 5 5 6 6 6 6 6 6 6 6 6 6 6 6 6 6 6 6 6 6 6 6 6 6 6 6 6 6 6 6 6 6 7 7 7 Final Carried 7 | 1 2 3 5 5 6 6 6 6 6 6 6 6 . . 2 2 6 6 3 3 6 6 6 6 6 6 6 6 6 6 3 6 5 6 7 3 5 Class Distribution -------------------- 42% | Scavenger-Gunner 16% | Hacker-Sprinter 12% | Scavenger-Mutant 7% | Mutant 5% | Hacker-Scout 4% | Hacker-Mutant 3% | Generator-Mutant Dominant Class ---------------- Scavenger-Gunner | -10/Materials Scavenger-Gunner | -10/Mines Scavenger-Gunner | -9/Materials Scavenger-Gunner | -9/Mines Scavenger-Mutant | -9/Exiles Scavenger-Gunner | -8/Mines Scavenger-Gunner | -8/Materials Scavenger-Gunner | -8/Garrison Scavenger-Gunner | -7/Factory Scavenger-Gunner | -7/Waste Scavenger-Gunner | -7/Factory Scavenger-Gunner | -7/Storage Scavenger-Mutant | -6/Factory Scavenger-Construct | -6/Lower Caves Scavenger-Mutant | -6/Lower Caves Scavenger-Mutant | -6/Zion Scavenger-Mutant | -6/Deep Caves Scavenger-Mutant | -5/Proximity Caves Hacker-Sprinter | -5/Factory Hacker-Sprinter | -5/Waste Hacker-Sprinter | -5/Factory Hacker-Sprinter | -5/Upper Caves Hacker-Sprinter | -5/Upper Caves Hacker-Sprinter | -5/Warlord Hacker-Sprinter | -4/Proximity Caves Hacker-Sprinter | -4/Factory Commander-Scout | -4/Extension Hacker-Scout | -4/Cetus Hacker-Scout | -4/Archives Hacker-Scout | -4/Hub_04(d) Hacker-Scout | -3/Research Hacker-Sprinter | -3/Testing Hacker-Sprinter | -2/Research Hacker-Mutant | -2/Quarantine Generator-Mutant | -2/Section 7 Generator-Mutant | -1/Access Generator-Mutant | -1/Command Resources | -11 -10 -10 -9 -9 -9 -8 -8 -8 -7 -7 -7 -7 -6 -6 -6 -6 -6 -5 -5 -5 -5 -5 -5 -5 -4 -4 -4 -4 -4 -4 -3 -3 -2 -2 -2 -1 -1 ----------- Run | Scr Mat Min Mat Min Exi Min Mat Gar Fac Was Fac Sto Fac Low Low Zio Dee Pro Fac Was Fac Upp Upp War Pro Fac Ext Cet Arc Hub Res Tes Res Qua Sec Acc Com Matter Collected 18752 | 275 292 139 1034 345 894 582 1336 644 1442 360 2015 1899 1508 182 203 838 345 58 726 114 195 17 97 281 46 57 142 32 . 142 80 657 301 588 559 242 85 Remotely . | . . . . . . . . . . . . . . . . . . . . . . . . . . . . . . . . . . . . . . Salvage Created 56201 | 223 1258 423 1507 300 543 1085 2310 843 2267 2170 3549 3388 3804 267 272 1723 326 543 3989 281 811 161 244 1412 1049 1180 2402 838 264 2290 855 1048 1009 1421 2391 6565 1190 Parts 3059 | 9 74 28 139 20 85 46 202 58 136 40 193 210 189 9 17 64 19 25 171 25 43 9 15 46 56 59 133 50 19 105 66 90 39 105 134 277 54 Haulers Intercepted 60 | . 2 . 5 . . . 3 . 6 . 3 6 2 . . . . . 7 . 3 . . . . 4 3 . . 4 1 1 3 . 3 4 . Recyclers Shooed 25 | 1 . . 4 1 . 1 1 . 1 . 1 1 7 . . . . . 4 . . . . . . . 1 . . . 2 . . . . . . Parts Field Recycled . | . . . . . . . . . . . . . . . . . . . . . . . . . . . . . . . . . . . . . . Retrieved Matter . | . . . . . . . . . . . . . . . . . . . . . . . . . . . . . . . . . . . . . . Parts Self-Destructed 114 | . . . . . . . . . . . . . . 9 14 1 . 25 . . . 9 11 . 45 . . . . . . . . . . . . Prevented . | . . . . . . . . . . . . . . . . . . . . . . . . . . . . . . . . . . . . . . Kills | -11 -10 -10 -9 -9 -9 -8 -8 -8 -7 -7 -7 -7 -6 -6 -6 -6 -6 -5 -5 -5 -5 -5 -5 -5 -4 -4 -4 -4 -4 -4 -3 -3 -2 -2 -2 -1 -1 ------- Run | Scr Mat Min Mat Min Exi Min Mat Gar Fac Was Fac Sto Fac Low Low Zio Dee Pro Fac Was Fac Upp Upp War Pro Fac Ext Cet Arc Hub Res Tes Res Qua Sec Acc Com Combat Hostiles Destroyed 802 | 2 29 14 39 10 3 13 44 24 32 6 51 52 38 5 8 12 7 8 59 5 10 3 13 25 23 15 29 15 4 22 17 20 10 30 23 67 15 Guns 465 | 1 6 9 32 10 2 12 44 24 32 6 51 52 36 . . . 2 8 8 . 5 3 . 18 23 12 24 13 3 15 14 . . . . . . Cannons 233 | . 17 5 4 . 1 . . . . . . . 1 3 6 3 4 . 14 5 5 . . . . . . . . . . 20 10 30 23 67 15 AOE 86 | . 6 . 2 . . 1 . . . . . . . . . . . . 37 . . . 13 6 . 3 5 2 1 7 3 . . . . . . Classes Destroyed 35 | 4 5 . 5 1 2 1 2 1 . 1 . 1 . . 2 2 1 . . . . . 1 2 . . . . . . . 1 1 . 2 . . Worker 87 | 1 3 1 6 1 . 3 11 . 7 . 5 8 11 . . . . . 13 . 2 . . . . 2 . . . 5 1 . . . 1 6 . Builder 33 | . . . 2 . . . 5 . 3 . . . 6 . . . . . 4 . . . . . . 2 3 . . 1 1 . . . . 6 . Tunneler 13 | 1 1 1 . . . 3 1 . . . . . 1 . . . . . 2 . . . . . . . . . . . . . . . . 3 . Hauler 60 | . 2 . 5 . . . 3 . 6 . 3 6 2 . . . . . 7 . 3 . . . . 4 3 . . 4 1 1 3 . 3 4 . Recycler 50 | 1 1 . 4 . . 5 3 . 3 . 8 3 8 . . . . . 6 . 1 . . . . . 3 . . 2 . 1 . . . 1 . Carrier 8 | . . . . . . . . . . . . . . . . . . . . . . . . . . . . . . . . . . . 1 7 . Mechanic 15 | . . . 2 . . . 1 . . . 1 4 1 . . . . . 3 . . . . . . . . . . . . . . . . 3 . Operator 19 | . 1 . 2 . . . 1 . . . . . . . . . . . 1 . 1 . . . . . 3 . . 4 . 2 . . 2 2 . Turret 1 | . . . . . 1 . . . . . . . . . . . . . . . . . . . . . . . . . . . . . . . . Watcher 60 | . 3 . 4 . . . 3 . 2 . 3 2 6 . . . . . 9 . 3 . . . . . 3 2 . 5 . 2 1 3 5 4 . Swarmer 138 | . 6 9 13 3 . 3 18 6 8 . 3 1 10 . 4 . . . 14 . 2 . 8 1 2 . . 4 . . 8 . . . 1 9 5 Saboteur 4 | . . . . . . . . . . . . . . . . . . . . . . . . . . . . . . . . . 1 . 2 1 . Grunt 308 | . 23 5 15 3 . 8 15 13 14 . 24 21 16 4 . . . 7 31 . 3 . 5 11 7 9 9 3 . 10 3 7 2 5 8 24 3 Brawler 29 | . . . 1 . . 1 1 . 2 . 4 3 2 1 . . . . 2 . . . . 4 . . 2 . . . . . . . 1 5 . Duelist 30 | . . . 1 1 . . . . 2 . 4 6 . . . . . . 3 . . . . 2 4 1 1 . . 1 . . . . . 3 1 Protector 13 | . . . . . . . 1 . 1 . 2 2 . . . . . . . . . . . 2 . . . . . 2 . . . 1 . 2 . Researcher 3 | . . . . . . . . . . . . . . . . . . . . . . . . . . . . . . . . . . . 3 . . Sentry 82 | . . . 9 . . . 6 4 . . 5 13 5 . . . . . 3 . 2 . . . 2 4 10 . 4 5 2 . 2 . 1 5 . Demolisher 7 | 2 . . . 2 . . . . . . . 1 . . . . . . . . . . . 1 . . 1 . . . . . . . . . . Specialist 2 | . . . . . . . . . . . . 1 . . . . . . . . . . . . . . 1 . . . . . . . . . . Hunter 51 | . . . . . . 1 2 . 2 . 5 2 2 . 1 . . 1 4 . 2 3 . 2 . . 3 . . . . . 2 9 . 10 . Programmer 55 | . . . . . . . . 1 3 . 4 2 3 . . . . . 2 . 1 . . . 1 1 . . . . 4 10 2 12 4 5 . Heavy 3 | . . . . . . . 1 . . . . . . . . . . . . . . . . . . . . . . 1 . . . . . 1 . Behemoth 9 | . . . . . . . . . . . . . . . 1 . . . . . . . . . . . 2 . . 1 . . 1 . 2 2 . Compactor 11 | . . . . . . . . . . 6 . . . . . . . . . 5 . . . . . . . . . . . . . . . . . Cetus Guard 8 | . . . . . . . . . . . . . . . . . . . . . . . . . . . . 8 . . . . . . . . . M Guard 2 | . . . . . . . . . . . . . . . . . . . . . . . . . . . . . . . . . . . . . 2 Enhanced Demolisher 1 | . . . . . . . . . . . . . . . . . . . . . . . . 1 . . . . . . . . . . . . . Lightning 6 | . . . . . . . . . . . . . . . . . . . . . . . . . . . . . . 3 . . . 3 . . . Combat Programmer 2 | . . . . . . . . . . . . . . . . . . . . . . . . . . . . . . . . . . . . . 2 Investigator 1 | . . . . . . . . . . . . . . . . . . . . . . . . . . . . . . . . . . . . 1 . Striker 3 | . . . . . . . . . . . . . . . . . . . . . . . . 1 . . . . . . . 2 . . . . . Executioner 3 | . . . . . . . . . . . . . . . . . . . . . . . . 1 . . . . . . . . . . 2 . . Alpha 7 3 | . . . . . . . . . . . . . . . . . . . . . . . . . . . . . . . . 1 . . 2 . . Zionite 41 | . . . . . 8 . . . . . . . . . . 33 . . . . . . . . . . . . . . . . . . . . . Z-Light 5 | . . . . . . . . . . . . . . . . . 5 . . . . . . . . . . . . . . . . . . . . Samaritan 1 | . . . . . . . . . . . . . . . . . . . . . . . 1 . . . . . . . . . . . . . . Tinkerer 4 | . . . . . . . . . . . . . . . . 3 . . . . . . 1 . . . . . . . . . . . . . . Master Thief 2 | . . . . . . . . . . . . . . . 2 . . . . . . . . . . . . . . . . . . . . . . Assembled 5 | . . . . 1 2 . . . . . . . . . . . 2 . . . . . . . . . . . . . . . . . . . . Surgeon 1 | . . . . . . . . . . . . . . . . 1 . . . . . . . . . . . . . . . . . . . . . Wasp 3 | . . . . . . . . . . . . . . . . 2 . . . . . . . . . . . . . . . . . . . . 1 Thug 3 | . . . . . . . . . . . . . . . . . . . . . . . . 2 1 . . . . . . . . . . . . Savage 7 | . . . . . . . . . . . . . . . . 2 . . . . . . . . 5 . . . . . . . . . . . . Butcher 3 | . . . . . . . . . . . . . . . . 2 . . . . . . . 1 . . . . . . . . . . . . . Martyr 1 | . . . . . . . . . . . . . . . . . . . . . . . . 1 . . . . . . . . . . . . . Guerrilla 1 | . . . . . . . . . . . . . . . . 1 . . . . . . . . . . . . . . . . . . . . . Mutant 6 | . . . . . . . . . . . . . . . . 5 . . . . . . . . 1 . . . . . . . . . . . . Best Kill Streak 45 | 3 6 6 13 3 3 11 23 6 7 5 11 17 19 3 6 45 3 5 17 2 4 2 9 7 9 16 14 7 4 21 9 5 5 13 10 27 5 Combat Bots Only 17 | 2 6 6 6 3 2 5 17 6 7 5 10 15 6 3 6 4 3 5 9 2 2 2 9 7 9 6 9 7 4 10 8 5 3 10 7 15 5 Max Kills in Single Turn 7 | 1 2 2 2 2 2 2 4 2 2 1 3 3 4 1 1 1 1 1 7 1 2 1 5 4 2 2 3 3 1 7 3 1 1 2 2 5 2 Gunslinging 2 | . . . 1 1 . 1 1 1 . . 1 2 1 . . . . . . . . . . . . . . . . . . . . . . . . Exploded 5 | . 2 . 2 . . 1 . . . . . . . . . . . . 5 . . . 5 3 . 2 2 1 1 2 2 . . . . . . Melee . | . . . . . . . . . . . . . . . . . . . . . . . . . . . . . . . . . . . . . . Uniques/NPCs Destroyed 8 | . . . . . 4 . . . . . . . . . . 1 . . . . . . . . . . . 1 . . . . . . . . 2 8R-AWN (-9/Exiles) EX-BIN (-9/Exiles) EX-HEX (-9/Exiles) EX-DEC (-9/Exiles) Imprinter (-6/Zion) A7 (-4/Cetus) MAIN.C Shell (-1/Command) MAIN.C (-1/Command) Combat | -11 -10 -10 -9 -9 -9 -8 -8 -8 -7 -7 -7 -7 -6 -6 -6 -6 -6 -5 -5 -5 -5 -5 -5 -5 -4 -4 -4 -4 -4 -4 -3 -3 -2 -2 -2 -1 -1 -------- Run | Scr Mat Min Mat Min Exi Min Mat Gar Fac Was Fac Sto Fac Low Low Zio Dee Pro Fac Was Fac Upp Upp War Pro Fac Ext Cet Arc Hub Res Tes Res Qua Sec Acc Com Damage Taken 24214 | 735 516 256 987 718 1030 141 582 176 669 . 1283 1442 1111 37 166 787 859 475 1581 20 494 151 139 267 157 310 343 142 30 1552 1192 1675 1158 1861 279 351 542 Core 19090 | 601 413 209 676 463 703 110 462 134 519 . 1017 1147 906 29 133 635 708 379 1291 16 420 131 109 211 123 241 269 110 24 1225 969 1326 931 1497 243 274 436 Absorbed by Shields 1665 | . . . . . . . . 30 . . . . . . . . . . . . . . . 203 90 62 185 136 28 . 11 . . . . 361 559 Redirected to Core 16309 | 495 320 145 597 399 625 101 402 134 519 . 896 909 703 29 104 521 549 340 1036 16 260 72 109 201 106 241 242 110 24 1186 827 1243 840 1251 129 264 364 Regen/Repaired (Parts) 111 | . 1 . . . . . . . . . . . . . . 106 . . . . 4 . . . . . . . . . . . . . . . . Core Remaining (%) 78 | 24 . 64 . . . 85 . 100 . . . 100 . . . . . 30 . . . . . . 100 . . . . 68 . 100 . . 100 . 91 Volleys Fired 2611 | 15 91 31 117 35 92 33 80 46 86 15 116 113 161 11 28 121 37 38 209 43 69 5 5 37 44 49 86 45 5 67 62 113 61 118 221 73 33 Largest 3 | 2 3 3 3 3 3 3 3 3 3 3 3 3 3 1 1 1 1 1 1 1 3 2 1 1 1 1 1 1 1 1 2 1 1 1 1 1 1 Hottest 360 | 100 130 130 130 69 69 83 85 85 85 85 85 85 96 96 96 48 48 48 119 119 246 146 49 46 46 46 46 46 46 46 95 240 240 240 360 360 103 Shots Fired 4300 | 30 210 94 345 105 198 99 235 138 258 44 346 339 266 11 28 121 37 38 208 43 76 9 5 37 44 49 86 45 5 67 78 112 61 118 208 73 34 Gun 3262 | 30 119 63 302 105 186 99 235 138 258 44 346 339 256 . . . 19 38 82 . 49 9 . 37 44 49 86 39 5 67 78 . . . 139 . 1 Cannon 969 | . 86 31 42 . . . . . . . . . 10 11 28 121 18 . 100 43 27 . . . . . . . . . . 98 61 118 69 73 33 Launcher 37 | . 5 . 1 . . . . . . . . . . . . . . . 26 . . . 5 . . . . . . . . . . . . . . Special 32 | . . . . . 12 . . . . . . . . . . . . . . . . . . . . . . 6 . . . 14 . . . . . Kinetic 2447 | . 34 32 264 105 186 99 235 138 258 44 346 339 244 . . . . . 4 43 53 4 . . . . 1 . . . 17 . . . . . 1 Thermal 1252 | 19 171 62 80 . 12 . . . . . . . 22 11 28 121 18 38 178 . 23 5 . . . . . 6 . . 46 112 61 110 69 60 . Explosive 37 | . 5 . 1 . . . . . . . . . . . . . . . 26 . . . 5 . . . . . . . . . . . . . . Electromagnetic 19 | 11 . . . . . . . . . . . . . . . . . . . . . . . . . . . . . . . . . 8 . . . Slashing 185 | . . . . . . . . . . . . . . . . . . . . . . . . . . . . . . . . . . . 139 13 33 Entropic 341 | . . . . . . . . . . . . . . . . . . . . . . . . 37 44 49 85 39 5 67 15 . . . . . . Phasic 19 | . . . . . . . . . . . . . . . . . 19 . . . . . . . . . . . . . . . . . . . . Robot Hit Streak 57 | 8 10 6 17 14 24 11 19 21 35 12 26 16 26 12 6 36 7 19 30 23 18 19 . 19 27 25 20 14 13 23 20 22 19 22 57 30 14 Robot Miss Streak 7 | 2 4 4 7 3 5 3 5 5 5 2 3 3 2 1 3 3 3 1 3 1 2 1 . 2 2 3 3 3 . 5 3 2 1 2 1 2 5 Penetration Max 4 | . . . . . 1 1 2 2 1 1 2 2 2 . . . . . . . . . . 2 1 2 2 3 . 2 1 . . 1 1 4 1 Secondary Targets 51 | 1 . . 5 4 . 1 6 2 5 . 12 11 3 . . . . . . . . . . . . . . . . . 1 . . . . . . Max Gunslinging Chain 2 | 1 . . 1 2 . 1 1 1 1 . 1 2 2 . . . . . . . . . . . . . . . . . 1 . . . . . . Capacitor 444 | . . . . . . . . . . . . . . . . . . . . . . . . . . . . . . . . . 58 118 208 60 . Shots Hit Robots 2924 | 20 122 33 209 55 145 59 131 55 158 35 235 243 189 9 19 98 17 28 137 41 57 9 . 33 40 41 70 37 5 55 60 81 46 92 179 62 19 Core Hits 1697 | 9 63 18 95 21 40 33 95 35 90 14 126 129 129 4 6 33 8 15 135 10 30 9 18 42 33 35 81 42 10 71 31 31 16 34 30 66 10 Critical Kills 237 | . . . . 1 6 11 32 11 24 5 42 45 34 2 2 21 1 . . . . . . . . . . . . . . . . . . . . Critical Parts Destroyed 300 | . . . 1 . 22 15 21 5 32 1 50 57 43 . . . . . . . . . . 7 5 6 13 6 1 12 3 . . . . . . Critical Strikes 603 | 2 10 . 3 1 28 26 55 17 56 16 94 110 78 2 2 21 2 1 20 2 2 . . 7 5 6 13 6 1 12 3 2 . . . . . Burn 14 | 2 10 . 2 . . . . . . . . . . . . . . . . . . . . . . . . . . . . . . . . . . Meltdown 26 | . . . . . . . . . . . . . . 2 2 21 1 . . . . . . . . . . . . . . . . . . . . Destroy 483 | . . . 1 1 28 26 55 17 56 16 94 110 78 . . . . . . . . . . . . . . . . . 1 . . . . . . Blast 4 | . . . . . . . . . . . . . . . . . . . . 2 2 . . . . . . . . . . . . . . . . Sever 2 | . . . . . . . . . . . . . . . . . . . . . . . . . . . . . . . . 2 . . . . . Detonate 52 | . . . . . . . . . . . . . . . . . . . . . . . . 7 5 6 13 6 1 12 2 . . . . . . Intensify 22 | . . . . . . . . . . . . . . . . . 1 1 20 . . . . . . . . . . . . . . . . . . Melee Attacks . | . . . . . . . . . . . . . . . . . . . . . . . . . . . . . . . . . . . . . . Impact . | . . . . . . . . . . . . . . . . . . . . . . . . . . . . . . . . . . . . . . Slashing . | . . . . . . . . . . . . . . . . . . . . . . . . . . . . . . . . . . . . . . Piercing . | . . . . . . . . . . . . . . . . . . . . . . . . . . . . . . . . . . . . . . Sneak Attacks . | . . . . . . . . . . . . . . . . . . . . . . . . . . . . . . . . . . . . . . Combat Hostiles . | . . . . . . . . . . . . . . . . . . . . . . . . . . . . . . . . . . . . . . Follow-up Attacks . | . . . . . . . . . . . . . . . . . . . . . . . . . . . . . . . . . . . . . . Damage Inflicted 469834 | 337 2184 592 3513 864 2314 1325 2930 1213 3321 815 5266 5040 4466 619 950 3779 773 896 14887 1684 2453 315 1610 5359 4238 4870 9708 4585 595 8751 3467 6284 3943 8208 84443 223905 39332 Guns 71941 | 282 942 336 3031 864 2238 1120 2930 1213 3321 815 5182 5040 3896 . . . 420 896 1677 . 1607 315 . 3440 3657 3800 8282 3492 489 5420 3155 . . . 4036 . 45 Cannons 374953 | . 930 256 370 . . . . . . . . . 266 619 950 3779 353 . 3467 1684 754 . . . . . . . . . . 6069 3943 8208 80407 223611 39287 Explosions 22566 | 55 312 . 112 . . 205 . . . . 84 . 304 . . . . . 9743 . 92 . 1610 1919 581 1070 1426 1010 106 3331 312 . . . . 294 . Melee . | . . . . . . . . . . . . . . . . . . . . . . . . . . . . . . . . . . . . . . Ramming . | . . . . . . . . . . . . . . . . . . . . . . . . . . . . . . . . . . . . . . Kinetic 33515 | . 199 189 2707 864 2238 1120 2930 1213 3321 815 5182 5040 3662 . . . . . 31 1684 1642 119 . . . . 33 . . . 481 . . . . . 45 Thermal 328118 | 229 1673 403 694 . 76 205 . . . . 84 . 601 619 950 3779 353 896 7024 . 811 196 . 1919 581 946 1010 1093 106 1224 1653 6284 3943 8086 80407 202273 . Explosive 9873 | . 312 . 112 . . . . . . . . . . . . . . . 7740 . . . 1610 . . 99 . . . . . . . . . . . Electromagnetic 3367 | 108 . . . . . . . . . . . . 203 . . . . . 92 . . . . . . 25 416 . . 2107 . . . 122 . 294 . Impact . | . . . . . . . . . . . . . . . . . . . . . . . . . . . . . . . . . . . . . . Slashing 64661 | . . . . . . . . . . . . . . . . . . . . . . . . . . . . . . . . . . . 4036 21338 39287 Piercing . | . . . . . . . . . . . . . . . . . . . . . . . . . . . . . . . . . . . . . . Entropic 29880 | . . . . . . . . . . . . . . . . . . . . . . . . 3440 3657 3800 8249 3492 489 5420 1333 . . . . . . Phasic 420 | . . . . . . . . . . . . . . . . . 420 . . . . . . . . . . . . . . . . . . . . Highest Corruption 18 | . 2 2 . . . . . . . 9 9 5 2 2 2 2 . . 1 1 9 9 9 9 . 3 3 3 3 10 6 10 1 17 18 1 1 Average Corruption 5 | . 2 2 . . . . . . . 9 4 2 1 2 2 2 . . 1 1 6 9 9 9 . 3 3 3 3 7 3 7 1 10 17 1 1 Corruption Purged 9 | . . . . . . . . . . . 9 . . . . . . . . . . . . . . . . . . . . . . . . . . Corruption Blocked 3 | . . . . . . . . . . . . . . . . . . . . . . . . . . . . . . . . . 3 . . . . Effects 270 | . 1 14 . . . . . . . 4 34 24 9 2 2 . . . 4 2 16 5 5 . . 1 9 6 1 10 6 26 . 33 51 . 5 Message Errors 60 | . . 5 . . . . . . . 1 9 4 1 1 1 . . . 1 . 6 1 2 . . . 2 . . 3 1 5 . 4 12 . 1 Matter Fused 65 | . 1 2 . . . . . . . 1 8 7 4 1 . . . . 2 2 3 1 1 . . . 2 . . 3 1 6 . 12 6 . 2 Heat Flow Errors 22 | . . 2 . . . . . . . . 4 . . . 1 . . . . . 2 . 1 . . . . 3 1 . 1 1 . 2 4 . . Energy Discharges 30 | . . 1 . . . . . . . . 1 2 . . . . . . . . 1 1 . . . . 2 1 . 2 1 4 . 5 9 . . Parts Rejected 5 | . . 1 . . . . . . . . 1 . 1 . . . . . . . . . . . . . . . . . 1 . . 1 . . . Data Loss (minor) 35 | . . 1 . . . . . . . 1 5 6 1 . . . . . . . 3 . . . . 1 1 . . 2 . 7 . 3 3 . 1 Data Loss (major) 14 | . . . . . . . . . . . 3 . . . . . . . . . 1 1 1 . . . . 1 . . . 1 . 4 2 . . Misfires 8 | . . 1 . . . . . . . . 2 2 . . . . . . . . . . . . . . 1 . . . . . . 1 . . 1 Alerts 8 | . . 1 . . . . . . . . 1 1 1 . . . . . . . . . . . . . . 1 . . . 1 . . 2 . . Weapon Failures 23 | . . . . . . . . . . 1 . 2 1 . . . . . 1 . . 1 . . . . 1 . . . 1 1 . 1 13 . . Overload Shots . | . . . . . . . . . . . . . . . . . . . . . . . . . . . . . . . . . . . . . . Overflow Damage 112961 | . 13 . 10 . . . . . . . . . 12 40 178 171 35 . 1045 . . . 118 25 29 104 25 . . 216 . 917 315 1301 23990 71811 12606 Projectiles 111594 | . . . 10 . . . . . . . . . 12 40 178 171 35 . 227 . . . . . . . . . . . . 917 315 1301 23990 71792 12606 Explosions 1367 | . 13 . . . . . . . . . . . . . . . . . 818 . . . 118 25 29 104 25 . . 216 . . . . . 19 . Melee . | . . . . . . . . . . . . . . . . . . . . . . . . . . . . . . . . . . . . . . Knockbacks 1 | . . . . . . . . . . . . . . . . . . . . . 1 . . . . . . . . . . . . . . . . Impact . | . . . . . . . . . . . . . . . . . . . . . . . . . . . . . . . . . . . . . . Kinetic 1 | . . . . . . . . . . . . . . . . . . . . . 1 . . . . . . . . . . . . . . . . Secondary . | . . . . . . . . . . . . . . . . . . . . . . . . . . . . . . . . . . . . . . Self-Inflicted Damage 408 | . 35 . . . . . . . . . . . . . . . . . . . . . 98 36 . 36 . . . 203 . . . . . . . Shots 8 | . 2 . . . . . . . . . . . . . . . . . . . . . 1 1 . 1 . . . 3 . . . . . . . Rammed . | . . . . . . . . . . . . . . . . . . . . . . . . . . . . . . . . . . . . . . Targets Rammed . | . . . . . . . . . . . . . . . . . . . . . . . . . . . . . . . . . . . . . . Kicked . | . . . . . . . . . . . . . . . . . . . . . . . . . . . . . . . . . . . . . . Crushed . | . . . . . . . . . . . . . . . . . . . . . . . . . . . . . . . . . . . . . . Highest Temperature 417 | 277 228 256 48 . . 18 10 2 . . 166 5 38 130 184 41 27 11 353 212 191 . 91 . . . . 210 140 . . 417 384 366 378 378 . Average Temperature 71 | 112 55 30 16 . . 18 10 2 . . 58 3 20 59 62 15 13 11 120 68 55 . 54 . . . . 106 103 . . 102 144 116 115 64 . Received Heat Transfer 3675 | . 255 60 387 140 . 54 144 84 90 . 306 348 264 18 . 56 104 237 399 9 36 . . 43 9 53 60 . 4 171 27 105 90 63 27 28 4 Effects 6 | . . 1 . . . . . . . . . . . . . . . . . . . . . . . . . . . . . 2 2 1 . . . Shutdowns 1 | . . . . . . . . . . . . . . . . . . . . . . . . . . . . . . . . 1 . . . . . Energy Bleed 4 | . . . . . . . . . . . . . . . . . . . . . . . . . . . . . . . . 1 2 1 . . . Interference 1 | . . 1 . . . . . . . . . . . . . . . . . . . . . . . . . . . . . . . . . . . Siege Activations . | . . . . . . . . . . . . . . . . . . . . . . . . . . . . . . . . . . . . . . Robots Corrupted 2 | . . . . . . . . . . . . . . . . . . . . . . . . . . . . . . 2 . . . . . . . Combat Hostiles . | . . . . . . . . . . . . . . . . . . . . . . . . . . . . . . . . . . . . . . Parts Fried 13 | . . . . . . . . . . . . . . . . . . . . . . . . . . . 1 . . 11 . . . 1 . . . Impact Corruptions . | . . . . . . . . . . . . . . . . . . . . . . . . . . . . . . . . . . . . . . Robots Melted 30 | 1 . . 1 . . . . . . . . . 1 2 2 21 1 . . . . . . 1 . . . . . . . . . . . . . Combat Hostiles 18 | 1 . . 1 . . . . . . . . . 1 2 2 9 1 . . . . . . 1 . . . . . . . . . . . . . Parts Melted 109 | . 15 1 5 . . . . 1 . . . 1 3 4 6 33 7 2 13 . 3 . . 3 . . . . . . . 5 2 5 . . . Heat Transferred 43336 | 766 4810 925 1850 . 63 300 . . . . 50 . 976 720 1520 7579 720 1036 7326 . 1050 325 . 1225 450 726 725 691 100 750 200 3881 1728 2844 . . . Parts Sabotaged . | . . . . . . . . . . . . . . . . . . . . . . . . . . . . . . . . . . . . . . Parts Stolen 4 | . . . . . . . . . . . . . . . 4 . . . . . . . . . . . . . . . . . . . . . . Parts Stripped . | . . . . . . . . . . . . . . . . . . . . . . . . . . . . . . . . . . . . . . Power Chain Reactions 12 | 1 . . . . . . . . . . . . 5 . . . . . 5 . . . . . . . . . . 1 . . . . . . . Missiles Intercepted . | . . . . . . . . . . . . . . . . . . . . . . . . . . . . . . . . . . . . . . Alert | -11 -10 -10 -9 -9 -9 -8 -8 -8 -7 -7 -7 -7 -6 -6 -6 -6 -6 -5 -5 -5 -5 -5 -5 -5 -4 -4 -4 -4 -4 -4 -3 -3 -2 -2 -2 -1 -1 ------- Run | Scr Mat Min Mat Min Exi Min Mat Gar Fac Was Fac Sto Fac Low Low Zio Dee Pro Fac Was Fac Upp Upp War Pro Fac Ext Cet Arc Hub Res Tes Res Qua Sec Acc Com Peak Influence 8699 | 40 747 480 1037 654 . 681 1532 1623 1868 653 1491 1278 1237 . . . . . 2736 982 1594 . . . . 1537 2196 2037 1051 2133 1723 870 647 935 3675 8699 6072 Initial 5567 | . 26 270 93 404 . . 187 949 851 653 457 677 525 . . . . . 113 957 687 . . . . 231 752 1163 814 367 1119 870 345 363 128 2204 5567 Average 1013 | . 443 303 737 567 . 431 801 1302 1353 653 780 965 831 . . . . . 1619 969 1200 . . . . 903 1401 1844 1013 1450 1455 436 360 252 1292 5062 5852 Maximum Alert Level 5 | . 3 2 3 2 . 2 4 5 5 2 4 4 4 . . . . . 5 3 4 . . . . 4 5 5 3 5 5 3 2 3 5 5 5 Low Security (%) 13 | 100 11 11 1 . . 11 4 . . . . . . . . . . . 3 . . . . . . . . . . 1 . 16 25 72 2 . . Level 1 8 | . 21 71 9 . . 4 27 . . . . . 6 . . . . . 12 . . . . . . 21 . . . 4 . 29 19 3 2 . . Level 2 22 | . 62 16 27 100 . 84 9 . . 100 51 8 28 . . . . . . . 4 . . . . 18 . . . 3 . 37 55 9 8 . . Level 3 23 | . 4 . 61 . . . 26 21 13 . 30 65 48 . . . . . 3 100 28 . . . . 20 35 . 100 8 . 15 . 14 61 . . Level 4 19 | . . . . . . . 32 67 78 . 17 26 15 . . . . . 23 . 67 . . . . 39 26 18 . 47 83 . . . 3 . . Level 5 10 | . . . . . . . . 10 8 . . . . . . . . . 57 . . . . . . . 37 81 . 35 16 . . . 22 55 100 High Security 1 | . . . . . . . . . . . . . . . . . . . . . . . . . . . . . . . . . . . . 44 . Max Security . | . . . . . . . . . . . . . . . . . . . . . . . . . . . . . . . . . . . . . . Squads Dispatched 157 | . 9 . 5 . . . 11 . 16 . 21 11 9 . . . . . 20 . 8 . . . . 4 3 . . 4 2 2 4 5 5 15 3 Investigation 41 | . 7 . . . . . 3 . 4 . 7 2 3 . . . . . 6 . 3 . . . . . 1 . . 2 . . 1 . . 2 . Extermination 17 | . . . . . . . . . 1 . 4 1 1 . . . . . 2 . 1 . . . . . . . . . 1 2 . 3 1 . . Reinforcement 38 | . 2 . 3 . . . 4 . 2 . 2 2 3 . . . . . 5 . 3 . . . . 3 1 . . 1 . . 3 2 1 1 . Assault 42 | . . . 2 . . . 1 . 3 . 5 5 . . . . . . 3 . 1 . . . . 1 1 . . 1 1 . . . 3 12 3 Garrison 19 | . . . . . . . 3 . 6 . 3 1 2 . . . . . 4 . . . . . . . . . . . . . . . . . . Intercept . | . . . . . . . . . . . . . . . . . . . . . . . . . . . . . . . . . . . . . . Searches Triggered . | . . . . . . . . . . . . . . . . . . . . . . . . . . . . . . . . . . . . . . Construction Impeded 6 | . . . . . . . 1 . 1 . . 1 . . . . . . 1 . 1 . . . . 1 . . . . . . . . . . . Haulers Reinforced 15 | . . . . . . . . . 1 . 1 1 2 . . . . . 4 . 2 . . . . 1 . . . . . . 2 . 1 . . Active Scanning Responses . | . . . . . . . . . . . . . . . . . . . . . . . . . . . . . . . . . . . . . . Cargo Convoy Interrupts . | . . . . . . . . . . . . . . . . . . . . . . . . . . . . . . . . . . . . . . Stealth | -11 -10 -10 -9 -9 -9 -8 -8 -8 -7 -7 -7 -7 -6 -6 -6 -6 -6 -5 -5 -5 -5 -5 -5 -5 -4 -4 -4 -4 -4 -4 -3 -3 -2 -2 -2 -1 -1 --------- Run | Scr Mat Min Mat Min Exi Min Mat Gar Fac Was Fac Sto Fac Low Low Zio Dee Pro Fac Was Fac Upp Upp War Pro Fac Ext Cet Arc Hub Res Tes Res Qua Sec Acc Com Distress Signals 47 | . 4 2 1 . . . 2 . . . 1 1 4 . . 1 . . 6 . 2 . . 1 . . 2 . . . . . 5 2 2 2 9 Communications Jammed . | . . . . . . . . . . . . . . . . . . . . . . . . . . . . . . . . . . . . . . Distress Signals . | . . . . . . . . . . . . . . . . . . . . . . . . . . . . . . . . . . . . . . Times Spotted 1123 | 2 46 14 63 11 29 14 58 25 48 5 62 69 54 4 17 52 49 8 69 6 33 3 10 48 19 14 39 16 3 30 20 24 26 39 16 64 14 Peak Tracking Total 40 | 2 5 4 8 4 9 3 12 4 8 3 10 11 11 2 5 7 40 5 6 4 6 2 9 10 5 4 4 8 1 10 5 6 9 4 5 12 6 Tactical Retreats 59 | . 2 . 2 1 4 2 5 . 8 . 2 2 5 . 1 1 . . 7 . 3 . . . . . . . . 4 1 . 1 4 . 4 . Traps | -11 -10 -10 -9 -9 -9 -8 -8 -8 -7 -7 -7 -7 -6 -6 -6 -6 -6 -5 -5 -5 -5 -5 -5 -5 -4 -4 -4 -4 -4 -4 -3 -3 -2 -2 -2 -1 -1 ------- Run | Scr Mat Min Mat Min Exi Min Mat Gar Fac Was Fac Sto Fac Low Low Zio Dee Pro Fac Was Fac Upp Upp War Pro Fac Ext Cet Arc Hub Res Tes Res Qua Sec Acc Com Traps Triggered 22 | . 1 . . . . . . 2 2 . 2 5 3 . . . . . 2 . 2 . . . . . . . . . 1 . . . . 2 . Indirectly 3 | . . . . . . . . . . . . . 3 . . . . . . . . . . . . . . . . . . . . . . . . Trap Hack Attempts . | . . . . . . . . . . . . . . . . . . . . . . . . . . . . . . . . . . . . . . Triggered . | . . . . . . . . . . . . . . . . . . . . . . . . . . . . . . . . . . . . . . Disarmed . | . . . . . . . . . . . . . . . . . . . . . . . . . . . . . . . . . . . . . . Reprogrammed . | . . . . . . . . . . . . . . . . . . . . . . . . . . . . . . . . . . . . . . Reused . | . . . . . . . . . . . . . . . . . . . . . . . . . . . . . . . . . . . . . . Traps Extracted . | . . . . . . . . . . . . . . . . . . . . . . . . . . . . . . . . . . . . . . Installed 1 | . . . . . . . . . . . . . . 1 . . . . . . . . . . . . . . . . . . . . . . . Triggered 13 | . . . . . . . . . . . . . . . 1 . . . . . . . . 10 2 . . . . . . . . . . . . Exploded 3 | . . . . . 3 . . . . . . . . . . . . . . . . . . . . . . . . . . . . . . . . Machines | -11 -10 -10 -9 -9 -9 -8 -8 -8 -7 -7 -7 -7 -6 -6 -6 -6 -6 -5 -5 -5 -5 -5 -5 -5 -4 -4 -4 -4 -4 -4 -3 -3 -2 -2 -2 -1 -1 ---------- Run | Scr Mat Min Mat Min Exi Min Mat Gar Fac Was Fac Sto Fac Low Low Zio Dee Pro Fac Was Fac Upp Upp War Pro Fac Ext Cet Arc Hub Res Tes Res Qua Sec Acc Com Machines Disabled 368 | . 5 . 1 8 17 14 4 3 12 . 11 4 5 . . 3 2 1 43 . 1 . 1 1 1 25 5 5 2 43 1 8 1 9 89 43 . Max in Single Turn 21 | . 3 . 1 2 2 6 1 1 3 . 3 1 4 . . 1 . 1 17 . 1 . 1 1 1 8 1 1 1 17 1 1 1 1 21 7 . Garrison Access 12 | . . . . . . . . . . . . 1 1 . . . . . 1 . 1 . . . . 1 . . . 1 1 . 2 . 1 2 . Network Hub 3 | . . . . . . . . . . . . . . . . . . . . . . . . . . . . . . 3 . . . . . . . Energy Cycler 1 | . . . . . . . . . . . . . . . . . . . . . . . . . . . . . . . . . . . . 1 . Machines Sabotaged . | . . . . . . . . . . . . . . . . . . . . . . . . . . . . . . . . . . . . . . Overloaded Fab Kills . | . . . . . . . . . . . . . . . . . . . . . . . . . . . . . . . . . . . . . . Hacking | -11 -10 -10 -9 -9 -9 -8 -8 -8 -7 -7 -7 -7 -6 -6 -6 -6 -6 -5 -5 -5 -5 -5 -5 -5 -4 -4 -4 -4 -4 -4 -3 -3 -2 -2 -2 -1 -1 --------- Run | Scr Mat Min Mat Min Exi Min Mat Gar Fac Was Fac Sto Fac Low Low Zio Dee Pro Fac Was Fac Upp Upp War Pro Fac Ext Cet Arc Hub Res Tes Res Qua Sec Acc Com Machines Accessed 130 | . 8 1 6 . 2 . 5 3 7 . 6 13 5 2 . . . . 13 . 13 . . 1 . 3 8 . . 9 3 7 3 6 2 1 3 Terminals 91 | . 6 . 5 . . . 3 3 3 . 2 12 2 . . . . . 9 . 8 . . . . 1 8 . . 8 2 6 1 6 2 1 3 Fabricators 17 | . . . . . . . . . 4 . 3 . 2 . . . . . 3 . 2 . . . . 1 . . . . . 1 1 . . . . Repair Stations 1 | . 1 . . . . . . . . . . . . . . . . . . . . . . . . . . . . . . . . . . . . Recycling Units 2 | . 1 . . . . . 1 . . . . . . . . . . . . . . . . . . . . . . . . . . . . . . Scanalyzers 2 | . . . 1 . . . . . . . . . . . . . . . . . 1 . . . . . . . . . . . . . . . . Garrison Access 11 | . . . . . . . 1 . . . 1 1 1 . . . . . 1 . 2 . . . . 1 . . . 1 1 . 1 . . . . Total Hacks 492 | . 40 1 15 . 6 . 17 5 20 . 17 35 18 4 . . . . 47 . 40 . . 1 . 11 28 . . 37 13 53 15 50 2 9 8 Successful 294 | . 31 1 10 . 6 . 10 4 7 . 8 15 11 4 . . . . 20 . 22 . . 1 . 6 23 . . 21 8 39 8 30 2 3 4 Failed 195 | . 9 . 4 . . . 6 1 13 . 9 20 7 . . . . . 27 . 18 . . . . 5 5 . . 16 5 13 7 20 . 6 4 Catastrophic 26 | . 2 . 1 . . . 1 . . . 1 3 1 . . . . . 4 . 1 . . . . . . . . 3 . . 2 4 . 2 1 Database Lockouts 3 | . . . 1 . . . 1 . . . . . . . . . . . . . . . . . . . . . . . . 1 . . . . . Manual 310 | . 31 . 12 . 1 . 15 1 3 . 7 25 3 . . . . 1 34 . 23 . . . . 5 18 1 . 22 12 37 6 41 . 9 3 Terminals 398 | . 36 . 13 . . . 15 5 8 . 7 33 11 . . . . . 33 . 26 . . . . 6 28 . . 36 12 48 12 50 2 9 8 Fabricators 53 | . . . . . . . . . 12 . 7 . 5 . . . . . 13 . 7 . . . . 2 . . . . . 5 2 . . . . Repair Stations 3 | . 3 . . . . . . . . . . . . . . . . . . . . . . . . . . . . . . . . . . . . Recycling Units 2 | . 1 . . . . . 1 . . . . . . . . . . . . . . . . . . . . . . . . . . . . . . Scanalyzers 6 | . . . 2 . . . . . . . . . . . . . . . . . 4 . . . . . . . . . . . . . . . . Garrison Access 18 | . . . . . . . 1 . . . 3 2 2 . . . . . 1 . 3 . . . . 3 . . . 1 1 . 1 . . . . Terminal Hacks 179 | . 15 1 5 . 6 . 5 3 . . 2 9 5 4 . . . . 7 . 8 . . 1 . 2 21 . . 14 4 30 5 25 2 2 3 Record 10 | . . . . . 5 . . . . . . . . 3 . . . . . . . . . . . . . . . . . 2 . . . . . Part Schematic 4 | . . . . . . . . . . . . . . . . . . . 1 . . . . . . . . . . 1 . 2 . . . . . Robot Analysis 8 | . 2 . 1 . . . 1 . . . . . . . . . . . 1 . . . . . . . 1 . . 1 . . . 1 . . . Prototype ID Bank 30 | . 4 . . . . . . . . . . . . . . . . . . . 1 . . . . . 8 . . . . 6 1 10 . . . Open Door 14 | . . 1 . . . . . . . . . 3 . 1 . . . . . . . . . 1 . . 4 . . . . . . 1 2 . 1 Level Access Points 1 | . . . . . . . . . . . . . . . . . . . . . . . . . . . . . . 1 . . . . . . . Branch Access Points 7 | . . . . . . . . . . . . . 1 . . . . . 1 . 1 . . . . 1 . . . . 2 . 1 . . . . Emergency Access Points 2 | . 1 . . . . . . 1 . . . . . . . . . . . . . . . . . . . . . . . . . . . . . Machine Index 1 | . . . . . . . . . . . . . . . . . . . . . . . . . . . . . . 1 . . . . . . . Terminal Index 11 | . 1 . 1 . . . 1 . . . 1 1 . . . . . . . . 1 . . . . . 1 . . . 1 1 . 1 . 1 . Fabricator Index 5 | . . . . . . . . . . . 1 . . . . . . . 1 . 1 . . . . 1 . . . . . 1 . . . . . Repair Station Index 1 | . 1 . . . . . . . . . . . . . . . . . . . . . . . . . . . . . . . . . . . . Scanalyzer Index 1 | . 1 . . . . . . . . . . . . . . . . . . . . . . . . . . . . . . . . . . . . Alert Level 18 | . 1 . 1 . . . 1 . . . . 1 1 . . . . . . . 1 . . . . . 1 . . 2 . 4 1 3 . 1 . Unreport Threat 30 | . . . . . . . 1 . . . . 4 3 . . . . . 1 . . . . . . . 3 . . 5 . 5 2 6 . . . Locate Traps 3 | . . . . . . . . . . . . . . . . . . . . . . . . . . . . . . . . 2 . . . . 1 Dispatch Records 1 | . 1 . . . . . . . . . . . . . . . . . . . . . . . . . . . . . . . . . . . . Transport Status 2 | . . . . . . . . . . . . . . . . . . . 1 . 1 . . . . . . . . . . . . . . . . Recall Assault 1 | . . . . . . . . . . . . . . . . . . . . . . . . . . . . . . . 1 . . . . . . Hauler Manifests 12 | . 1 . 1 . . . 1 . . . . . . . . . . . 1 . 2 . . . . . 3 . . 1 . 2 . . . . . Zone Layout 13 | . 2 . 1 . . . . . . . . . . . . . . . . . . . . . . . . . . 2 . 5 . 3 . . . Garrison Registry 1 | . . . . . . . . 1 . . . . . . . . . . . . . . . . . . . . . . . . . . . . . Security Stations 1 | . . . . . . . . 1 . . . . . . . . . . . . . . . . . . . . . . . . . . . . . EX-Prototype ID Bank 1 | . . . . . 1 . . . . . . . . . . . . . . . . . . . . . . . . . . . . . . . . Disengage Seal 1 | . . . . . . . . . . . . . . . . . . . . . . . . . . . . . . . . . . . . . 1 Fabricator Hacks 23 | . . . . . . . . . 5 . 4 . 3 . . . . . 4 . 2 . . . . 1 . . . . . 2 2 . . . . Network Status 4 | . . . . . . . . . 1 . . . 1 . . . . . . . 1 . . . . 1 . . . . . . . . . . . Load Schematic 11 | . . . . . . . . . 3 . 2 . 1 . . . . . 2 . . . . . . . . . . . . 2 1 . . . . Build 8 | . . . . . . . . . 1 . 2 . 1 . . . . . 2 . 1 . . . . . . . . . . . 1 . . . . Repair Station Hacks 2 | . 2 . . . . . . . . . . . . . . . . . . . . . . . . . . . . . . . . . . . . Scan Component 1 | . 1 . . . . . . . . . . . . . . . . . . . . . . . . . . . . . . . . . . . . Repair 1 | . 1 . . . . . . . . . . . . . . . . . . . . . . . . . . . . . . . . . . . . Recycling Unit Hacks . | . . . . . . . . . . . . . . . . . . . . . . . . . . . . . . . . . . . . . . Scanalyzer 6 | . . . 2 . . . . . . . . . . . . . . . . . 4 . . . . . . . . . . . . . . . . Insert Component 2 | . . . 1 . . . . . . . . . . . . . . . . . 1 . . . . . . . . . . . . . . . . Analyze 4 | . . . 1 . . . . . . . . . . . . . . . . . 3 . . . . . . . . . . . . . . . . Garrison Access Hacks 9 | . . . . . . . 1 . . . . 1 1 . . . . . 1 . 1 . . . . 1 . . . 1 1 . 1 . . . . Unlock Access 1 | . . . . . . . 1 . . . . . . . . . . . . . . . . . . . . . . . . . . . . . . Seal Access 8 | . . . . . . . . . . . . 1 1 . . . . . 1 . 1 . . . . 1 . . . 1 1 . 1 . . . . Unauthorized Hacks 75 | . 14 . 3 . . . 4 1 2 . 2 5 2 . . . . . 8 . 7 . . . . 2 2 . . 6 3 7 . 5 . 1 1 Terminals 66 | . 12 . 3 . . . 3 1 2 . 2 5 2 . . . . . 6 . 6 . . . . 1 2 . . 6 3 5 . 5 . 1 1 Assimilate 9 | . 1 . . . . . . . . . 1 1 . . . . . . . . 1 . . . . 1 . . . 2 1 . . 1 . . . Botnet 51 | . 6 . 3 . . . 3 1 2 . 1 4 2 . . . . . 6 . 5 . . . . . 2 . . 4 2 5 . 3 . 1 1 Operators 2 | . 1 . . . . . . . . . . . . . . . . . . . . . . . . . . . . . . . . 1 . . . Search 4 | . 4 . . . . . . . . . . . . . . . . . . . . . . . . . . . . . . . . . . . . Fabricators 6 | . . . . . . . . . . . . . . . . . . . 2 . 1 . . . . 1 . . . . . 2 . . . . . Prioritize 2 | . . . . . . . . . . . . . . . . . . . 1 . . . . . . . . . . . . 1 . . . . . Haulers 4 | . . . . . . . . . . . . . . . . . . . 1 . 1 . . . . 1 . . . . . 1 . . . . . Repair Stations 1 | . 1 . . . . . . . . . . . . . . . . . . . . . . . . . . . . . . . . . . . . Mechanics 1 | . 1 . . . . . . . . . . . . . . . . . . . . . . . . . . . . . . . . . . . . Recycling Units 2 | . 1 . . . . . 1 . . . . . . . . . . . . . . . . . . . . . . . . . . . . . . Tunnel 2 | . 1 . . . . . 1 . . . . . . . . . . . . . . . . . . . . . . . . . . . . . . Scanalyzers . | . . . . . . . . . . . . . . . . . . . . . . . . . . . . . . . . . . . . . . Garrison Access . | . . . . . . . . . . . . . . . . . . . . . . . . . . . . . . . . . . . . . . Data Cores Recovered 6 | . . . . . . . . . . . . . . . . . . . 1 . 1 . . . . . 2 . . 1 . 1 . . . . . Used 3 | . . . . . . . . . . . . . . . . . . . . . 1 . . . . . 1 . . 1 . . . . . . . Hacking Detections 95 | . 7 . 4 . . . 3 2 7 . 6 10 4 . . . . . 12 . 11 . . . . 3 4 1 . 7 2 2 2 5 1 1 1 Full Trace Events 32 | . 3 . 1 . . . 2 . 4 . 5 1 3 . . . . . 6 . 3 . . . . . . . . 2 . . 1 . . 1 . Feedback Events 2 | . . . . . . . . . . . 1 . . . . . . . . . . . . . . . . . . 1 . . . . . . . Corruption 1 | . . . . . . . . . . . . . . . . . . . . . . . . . . . . . . 1 . . . . . . . Hackware Fried 1 | . . . . . . . . . . . 1 . . . . . . . . . . . . . . . . . . . . . . . . . . Feedback Blocked . | . . . . . . . . . . . . . . . . . . . . . . . . . . . . . . . . . . . . . . Robot Schematics Acquired 6 | . . . . . . . . . . . . . . . . 3 . . . . . . . . . . . . . . . . . . 3 . . Robots Built . | . . . . . . . . . . . . . . . . . . . . . . . . . . . . . . . . . . . . . . Authchips . | . . . . . . . . . . . . . . . . . . . . . . . . . . . . . . . . . . . . . . Time . | . . . . . . . . . . . . . . . . . . . . . . . . . . . . . . . . . . . . . . Total Robot Build Rating . | . . . . . . . . . . . . . . . . . . . . . . . . . . . . . . . . . . . . . . Part Schematics Acquired 27 | . . . 1 . . . . . . . . . . . . 15 . . 1 . 1 . . . . . . . . 1 . 2 . . 6 . . Parts Built 13 | . . . . . . . . . 2 . 4 . 2 . . . . . 2 . 2 . . . . . . . . . . . 1 . . . . Authchips . | . . . . . . . . . . . . . . . . . . . . . . . . . . . . . . . . . . . . . . Time 675 | . . . . . . . . . 47 . 190 . 95 . . . . . 228 . 69 . . . . . . . . . . . 46 . . . . Total Part Build Rating 77 | . . . . . . . . . 10 . 20 . 10 . . . . . 10 . 18 . . . . . . . . . . . 9 . . . . Parts Repaired 1 | . 1 . . . . . . . . . . . . . . . . . . . . . . . . . . . . . . . . . . . . Time 70 | . 70 . . . . . . . . . . . . . . . . . . . . . . . . . . . . . . . . . . . . Parts Recycled . | . . . . . . . . . . . . . . . . . . . . . . . . . . . . . . . . . . . . . . Recycled Matter . | . . . . . . . . . . . . . . . . . . . . . . . . . . . . . . . . . . . . . . Retrieved Matter . | . . . . . . . . . . . . . . . . . . . . . . . . . . . . . . . . . . . . . . Retrieved Components . | . . . . . . . . . . . . . . . . . . . . . . . . . . . . . . . . . . . . . . Parts Scanalyzed 2 | . . . 1 . . . . . . . . . . . . . . . . . 1 . . . . . . . . . . . . . . . . Part Schematics Acquired 2 | . . . 1 . . . . . . . . . . . . . . . . . 1 . . . . . . . . . . . . . . . . Parts Damaged 1 | . . . . . . . . . . . . . . . . . . . . . 1 . . . . . . . . . . . . . . . . Bothacking | -11 -10 -10 -9 -9 -9 -8 -8 -8 -7 -7 -7 -7 -6 -6 -6 -6 -6 -5 -5 -5 -5 -5 -5 -5 -4 -4 -4 -4 -4 -4 -3 -3 -2 -2 -2 -1 -1 ------------ Run | Scr Mat Min Mat Min Exi Min Mat Gar Fac Was Fac Sto Fac Low Low Zio Dee Pro Fac Was Fac Upp Upp War Pro Fac Ext Cet Arc Hub Res Tes Res Qua Sec Acc Com Used RIF Installer . | . . . . . . . . . . . . . . . . . . . . . . . . . . . . . . . . . . . . . . Robots Hacked . | . . . . . . . . . . . . . . . . . . . . . . . . . . . . . . . . . . . . . . Non-combat . | . . . . . . . . . . . . . . . . . . . . . . . . . . . . . . . . . . . . . . Combat . | . . . . . . . . . . . . . . . . . . . . . . . . . . . . . . . . . . . . . . Robot Hacks Applied . | . . . . . . . . . . . . . . . . . . . . . . . . . . . . . . . . . . . . . . Relay Couplers Released 9 | . . . . . . . . 2 . . . 2 2 . . . . . . . . . . . . . . . . . . . 1 . . 2 . Machine Destruction 3 | . . . . . . . . . . . . . . . . . . . . . . . . . . . . . . . . . 1 . . 2 . Programmers 6 | . . . . . . . . 2 . . . 2 2 . . . . . . . . . . . . . . . . . . . . . . . . Fabnet Peak Effective % . | . . . . . . . . . . . . . . . . . . . . . . . . . . . . . . . . . . . . . . Robots Rewired 19 | . . . . . . . . 6 . . . . 2 . . . . . . . . . . 3 1 . 7 . . . . . . . . . . Allies Hacked 1 | . . . . . . . . . . . . 1 . . . . . . . . . . . . . . . . . . . . . . . . . Hacks Repelled . | . . . . . . . . . . . . . . . . . . . . . . . . . . . . . . . . . . . . . . Allies | -11 -10 -10 -9 -9 -9 -8 -8 -8 -7 -7 -7 -7 -6 -6 -6 -6 -6 -5 -5 -5 -5 -5 -5 -5 -4 -4 -4 -4 -4 -4 -3 -3 -2 -2 -2 -1 -1 -------- Run | Scr Mat Min Mat Min Exi Min Mat Gar Fac Was Fac Sto Fac Low Low Zio Dee Pro Fac Was Fac Upp Upp War Pro Fac Ext Cet Arc Hub Res Tes Res Qua Sec Acc Com Total Allies 68 | . 1 . . . . . . 6 3 . . 13 2 . . . 1 . . 19 . . . 3 1 1 15 . . 2 1 . . . . . . Largest Group 18 | . 1 . . . . . . 6 3 . . 11 2 . . . 1 . . 17 15 1 . 3 3 4 18 13 12 12 1 1 . . . . . Highest-Rated Group 815 | . 10 . . . . . . 96 93 . . 201 62 . . . 119 . . 592 533 18 . 176 178 204 815 648 489 489 64 26 . . . . . Highest-Rated Ally 159 | . 10 . . . . . . 16 31 . . 31 32 . . . 119 . . 50 50 18 . 65 65 65 159 159 65 65 64 26 . . . . . Total Orders 2 | . . . . . . . . . . . . . . . . . . . . . . . . . . . . 2 . . . . . . . . . STAY 1 | . . . . . . . . . . . . . . . . . . . . . . . . . . . . 1 . . . . . . . . . FOLLOW 1 | . . . . . . . . . . . . . . . . . . . . . . . . . . . . 1 . . . . . . . . . Ally Attacks 382 | . . . . . . . . 31 39 . . 39 8 . . . 35 . . 33 94 . . 14 . 2 31 11 . 45 . . . . . . . Total Damage 9435 | . . . . . . . . 325 519 . . 489 260 . . . 1651 . . 835 3107 . . 256 . 61 546 276 . 1110 . . . . . . . Kills 56 | . . . . . . . . 3 2 . . 2 2 . . . 10 . . 2 24 . . 1 . . 6 1 . 3 . . . . . . . Allies Corrupted 4 | . . . . . . . . . . . . . . . . . . . . . 2 . . . . . . . . 2 . . . . . . . Allies Melted . | . . . . . . . . . . . . . . . . . . . . . . . . . . . . . . . . . . . . . . Intel | -11 -10 -10 -9 -9 -9 -8 -8 -8 -7 -7 -7 -7 -6 -6 -6 -6 -6 -5 -5 -5 -5 -5 -5 -5 -4 -4 -4 -4 -4 -4 -3 -3 -2 -2 -2 -1 -1 ------- Run | Scr Mat Min Mat Min Exi Min Mat Gar Fac Was Fac Sto Fac Low Low Zio Dee Pro Fac Was Fac Upp Upp War Pro Fac Ext Cet Arc Hub Res Tes Res Qua Sec Acc Com Robot Analysis Total 8 | . 2 . 1 . . . 1 . . . . . . . . . . . 1 . . . . . . . 1 . . 1 . . . 1 . . . Derelict Logs Recovered 10 | . . 1 . 2 . . . . . . . . . 2 . . . . . . . 1 2 . 2 . . . . . . . . . . . . Drone Launches . | . . . . . . . . . . . . . . . . . . . . . . . . . . . . . . . . . . . . . . Drone Recoveries . | . . . . . . . . . . . . . . . . . . . . . . . . . . . . . . . . . . . . . . Exploration | -11 -10 -10 -9 -9 -9 -8 -8 -8 -7 -7 -7 -7 -6 -6 -6 -6 -6 -5 -5 -5 -5 -5 -5 -5 -4 -4 -4 -4 -4 -4 -3 -3 -2 -2 -2 -1 -1 ------------- Run | Scr Mat Min Mat Min Exi Min Mat Gar Fac Was Fac Sto Fac Low Low Zio Dee Pro Fac Was Fac Upp Upp War Pro Fac Ext Cet Arc Hub Res Tes Res Qua Sec Acc Com Turns Passed 27157 | 1640 1307 1003 1342 643 987 461 561 683 1440 101 2668 1402 1214 169 162 778 547 339 1357 274 668 92 132 981 320 262 443 232 55 329 427 790 323 1130 942 632 321 Spaces Moved 24660 | 65 1014 433 1115 627 860 565 430 702 1046 96 1120 1028 1148 344 244 1329 689 450 1796 337 947 228 356 993 369 361 513 238 40 421 438 1048 352 1000 943 668 307 Core 22 | 22 . . . . . . . . . . . . . . . . . . . . . . . . . . . . . . . . . . . . . Treads 615 | . . . . . . . . . . . 615 . . . . . . . . . . . . . . . . . . . . . . . . . . Legs 40 | 40 . . . . . . . . . . . . . . . . . . . . . . . . . . . . . . . . . . . . . Wheels . | . . . . . . . . . . . . . . . . . . . . . . . . . . . . . . . . . . . . . . Hover 19937 | 3 1014 433 1115 627 860 565 430 702 1046 96 500 351 584 344 244 1329 689 450 1796 337 947 228 356 688 . . . . . . . 961 352 1000 915 668 307 Flight 4018 | . . . . . . . . . . . 5 677 564 . . . . . . . . . . 305 369 361 513 238 40 421 438 87 . . . . . Fastest Speed 32 | 50 66 76 58 65 56 63 63 63 56 56 56 43 38 38 38 38 38 38 32 32 32 32 32 32 33 33 33 33 33 33 33 33 33 33 57 46 46 Average Speed 53 | 111 77 76 62 65 63 63 63 63 105 56 131 64 40 38 38 38 38 38 32 32 33 32 32 36 33 33 33 33 33 33 33 33 33 50 57 60 46 Slowest Speed 220 | 150 90 76 76 65 65 63 63 63 142 56 189 103 220 38 38 38 38 38 72 32 72 32 72 72 33 33 33 33 33 73 33 33 33 73 103 107 46 Overloaded Moves . | . . . . . . . . . . . . . . . . . . . . . . . . . . . . . . . . . . . . . . Propulsion Burnouts . | . . . . . . . . . . . . . . . . . . . . . . . . . . . . . . . . . . . . . . Robots Hopped 26 | . . . . . . . . . . . . 3 8 . . . . . . . . . . 1 2 3 5 . . 1 3 . . . . . . Cave-ins Triggered 1 | . . . . . . . . . . . . . . . . . . . . . . . . . . . . . . . . . 1 . . . . Microwarps 1 | . . . . . . . . . . . . . . . . . . . . . . . . . . . . . . . . . . . 1 . . Exploration Rate (%) 59 | 6 97 68 84 99 90 96 40 82 27 83 26 89 23 42 42 87 77 61 49 95 32 41 54 73 65 17 76 83 69 74 18 95 18 76 61 23 14 Regions Visited 37 Branch Regions 22 Pre-discovered Areas 12 | . 1 1 . 2 1 . 1 . . . . 1 . 1 . 1 . . . . . . 2 . 1 . . . . . . . . . . . . Known Exits Taken 25 | . . . . . . . 1 . . . 1 1 1 1 1 1 1 1 . . 1 1 1 1 1 1 1 1 1 1 1 1 1 1 1 1 . Unknown Exits Taken 7 | 1 1 1 1 1 1 1 . . . . . . . . . . . . . . . . . . . . . . . . . . . . . . . Scrap Searched 18 | . . 1 . 1 . 1 . . . . . . . . 4 4 . 1 . . . 2 1 . 3 . . . . . . . . . . . . Spaces Dug 395 | . 8 . . . . . 6 . . . 8 . . 1 . . 2 5 16 . 2 . 129 1 2 2 22 2 . 12 3 8 2 1 62 95 6 Terrain Destroyed 5967 | 5 28 . 9 . 18 94 56 28 31 1 59 77 24 2 7 1 13 8 363 2 20 . 212 102 154 266 257 173 25 710 59 19 12 49 955 2090 38 Melee . | . . . . . . . . . . . . . . . . . . . . . . . . . . . . . . . . . . . . . . Projectile 3998 | . . . . . 15 28 51 26 9 1 10 73 10 2 7 1 13 8 32 2 11 . . 76 127 99 185 85 17 148 41 19 12 49 841 1962 38 AOE 1942 | 5 28 . 9 . . 65 . . 19 . 44 . 10 . . . . . 331 . 9 . 212 26 27 167 72 88 8 562 18 . . . 114 128 . Terrain Rammed . | . . . . . . . . . . . . . . . . . . . . . . . . . . . . . . . . . . . . . . Walls Destroyed . | . . . . . . . . . . . . . . . . . . . . . . . . . . . . . . . . . . . . . . Machines Disabled . | . . . . . . . . . . . . . . . . . . . . . . . . . . . . . . . . . . . . . . Actions | -11 -10 -10 -9 -9 -9 -8 -8 -8 -7 -7 -7 -7 -6 -6 -6 -6 -6 -5 -5 -5 -5 -5 -5 -5 -4 -4 -4 -4 -4 -4 -3 -3 -2 -2 -2 -1 -1 --------- Run | Scr Mat Min Mat Min Exi Min Mat Gar Fac Was Fac Sto Fac Low Low Zio Dee Pro Fac Was Fac Upp Upp War Pro Fac Ext Cet Arc Hub Res Tes Res Qua Sec Acc Com Total 36469 | 1599 1351 1036 1497 784 1122 622 625 889 1281 126 2176 1631 1777 376 293 1549 958 604 2476 484 1267 239 370 1606 547 479 745 365 78 580 671 1416 555 1619 1345 880 451 Wait 7434 | 1509 192 557 154 91 111 5 49 85 108 9 857 417 414 6 6 87 187 92 375 56 189 2 1 476 116 44 86 67 31 32 123 147 89 361 132 89 82 Move 24549 | 64 1013 432 1114 626 859 564 429 701 1046 95 1119 1021 1132 343 243 1328 688 449 1796 336 946 227 355 990 364 355 504 237 39 418 431 1047 350 999 915 667 307 Hop 22 | . . . . . . . . . . . . 3 7 . . . . . . . . . . 1 2 2 3 . . 1 3 . . . . . . Pick Up 88 | 2 2 1 9 2 8 . . . . . . . . . 2 1 5 3 4 4 6 . . 10 1 1 2 . . . 1 5 2 5 10 . 2 Fast Attach 182 | 6 7 3 10 2 12 . 8 1 5 1 10 4 3 2 4 . 10 . 10 . 9 . . 15 . 1 4 1 . 1 1 7 2 12 22 6 3 Attach 24 | 1 . . 2 . 1 . . . . . . . . . . . . . 5 . . . 2 2 . . . . . . . 1 . 3 3 2 2 Detach 22 | . . . 2 . 2 . . . . . . . . . . . . . 7 . 1 . 2 3 . . . . . 1 . 1 . 1 . . 2 Swap 37 | 1 7 . 10 1 1 . . 1 . 1 . . . . . . 2 . 1 2 . . . . . . . 1 . 1 . 6 1 . 1 . . Drop 246 | 1 6 2 14 5 23 . 5 1 3 2 10 6 6 1 1 1 12 6 18 4 13 . . 30 1 2 4 . . 2 4 10 6 14 22 8 3 Fire 2611 | 15 91 31 117 35 92 33 80 46 86 15 116 113 161 11 28 121 37 38 209 43 69 5 5 37 44 49 86 45 5 67 62 113 61 118 221 73 33 Melee . | . . . . . . . . . . . . . . . . . . . . . . . . . . . . . . . . . . . . . . Ram . | . . . . . . . . . . . . . . . . . . . . . . . . . . . . . . . . . . . . . . Kick . | . . . . . . . . . . . . . . . . . . . . . . . . . . . . . . . . . . . . . . Crush . | . . . . . . . . . . . . . . . . . . . . . . . . . . . . . . . . . . . . . . Escape Stasis 7 | . . . . . . . . 6 . . . . . . . . . . . . . . . . . . . . . . . . 1 . . . . Rewire 80 | . . . . . . . . 34 . . . . 13 . . . . . . . . . . 9 2 . 21 . . . . 1 . . . . . Trap 1 | . . . . . . . . . . . . . . 1 . . . . . . . . . . . . . . . . . . . . . . . Miscellaneous 1166 | . 33 10 65 22 13 20 54 14 33 3 64 67 41 12 9 11 17 16 51 39 34 5 5 33 17 25 35 14 3 57 46 78 43 106 19 35 17 Route ------- -11/Scrapyard -10/Materials (discovered 4 exits: *Mat x2 / *Min x2) -10/Mines -9/Materials (discovered 4 exits: *Mat x3 / [*Min]) -9/Mines (discovered 3 exits: *Mat x2 / *Exi) -9/Exiles -8/Mines (discovered 2 exits: *Mat x2) -8/Materials (discovered 2 exits: Fac / Gar) -8/Garrison (discovered 3 exits: *Fac x3) -7/Factory (discovered 3 exits: *Fac / *Sto / *Low) -7/Waste -7/Factory (discovered 2 exits: *Sto / *Low) -7/Storage -6/Factory (discovered 2 exits: *Low x2) -6/Lower Caves -6/Lower Caves -6/Zion (discovered 2 exits: *Dee / [*Pro]) -6/Deep Caves -5/Proximity Caves -5/Factory (discovered 2 exits: Upp x2) -5/Waste -5/Factory (discovered 2 exits: *Upp x2) -5/Upper Caves -5/Upper Caves -5/Warlord -4/Proximity Caves -4/Factory (discovered 4 exits: Upp x2 / *Ext x2) -4/Extension (discovered 2 exits: *Res / *Cet) -4/Cetus (discovered 2 exits: *Res / *Arc) -4/Archives -4/Hub_04(d) (discovered 4 exits: *Res x4) -3/Research (discovered 4 exits: Res / *Arm / *Tes x2) -3/Testing -2/Research (discovered 2 exits: *Qua x2) -2/Quarantine -2/Section 7 -1/Access -1/Command Tau Ceti IV Orbit History --------- Turn | Location | Event 2 | -11/Scrapyard | Upgraded with Propulsion slot (x1) 2 | -11/Scrapyard | Upgraded with Utility slot (x2) 2 | -11/Scrapyard | Upgraded with Weapon slot (x1) 3 | -11/Scrapyard | Discovered new exit (range 16) 1601 | -11/Scrapyard | Assembled infested the area 1611 | -11/Scrapyard | Core integrity fell below 50% 1619 | -11/Scrapyard | Core integrity fell below 20% 1641 | -11/Scrapyard | Entered Materials 1659 | -10/Materials | Build established: Mutant 1929 | -10/Materials | Reached level 2 2094 | -10/Materials | Discovered new exit (range 7) 2107 | -10/Materials | Discovered new exit (range 13) 2132 | -10/Materials | Upgraded with Weapon slot (x1) 2195 | -10/Materials | Discovered new exit (range 14) 2323 | -10/Materials | Repaired Corrupted Cmb. Airjet 2370 | -10/Materials | Discovered new exit (range 11) 2426 | -10/Materials | Build established: Scavenger-Gunner 2604 | -10/Materials | Reached level 3 2884 | -10/Materials | Reached level 4 2948 | -10/Materials | Entered Mines 2950 | -10/Mines | Upgraded with Propulsion slot (x1) 2950 | -10/Mines | Upgraded with Utility slot (x1) 3148 | -10/Mines | Found the Drone Emporium 3152 | -10/Mines | Found Prototype Device 3152 | -10/Mines | Identified Decoy Drone Bay 3187 | -10/Mines | Reached level 5 3221 | -10/Mines | Discovered new exit (range 6) 3262 | -10/Mines | Excavation squad dispatched 3262 | -10/Mines | A large section of the Mines collapsed 3512 | -10/Mines | Excavation squad dispatched 3762 | -10/Mines | Excavation squad dispatched 3951 | -10/Mines | Entered Materials 3953 | -9/Materials | Reached level 6 3953 | -9/Materials | Upgraded with Propulsion slot (x1) 3953 | -9/Materials | Upgraded with Utility slot (x1) 4085 | -9/Materials | Reached level 7 4249 | -9/Materials | Discovered new exit (range 5) 4351 | -9/Materials | First assault squad dispatched 4437 | -9/Materials | Reached level 8 4519 | -9/Materials | Upgraded with Utility slot (x1) 4747 | -9/Materials | Central database locked down 4786 | -9/Materials | Build established: Scavenger-Tank 4870 | -9/Materials | Reached level 9 4897 | -9/Materials | Discovered new exit (range 15) 5025 | -9/Materials | Upgraded with Propulsion slot (x1) 5149 | -9/Materials | Discovered new exit (range 6) 5241 | -9/Materials | Discovered new exit (range 8) 5287 | -9/Materials | Build established: Scavenger-Gunner 5293 | -9/Materials | Entered Mines 5376 | -9/Mines | Found a damaged Exp. Sensor Array with a note attached 5377 | -9/Mines | Found Prototype Device 5379 | -9/Mines | Assembled infested the area 5496 | -9/Mines | Discovered new exit (range 13) 5513 | -9/Mines | Learned location of Zion (-6) 5517 | -9/Mines | Learned location of 1 exit from Materials 5548 | -9/Mines | Learned location of Storage (-7) 5587 | -9/Mines | Discovered new exit (range 7) 5711 | -9/Mines | Deemed a non-threat by the Exiles lab entrance 5711 | -9/Mines | Discovered new exit (range 5) 5936 | -9/Mines | Entered Exiles 5938 | -9/Exiles | Reached level 10 5953 | -9/Exiles | Met 8R-AWN 5963 | -9/Exiles | Met EX-HEX 5987 | -9/Exiles | Met EX-DEC 6116 | -9/Exiles | Met EX-BIN 6124 | -9/Exiles | Aligned with FarCom system 6124 | -9/Exiles | Given EX-Vault access code 6141 | -9/Exiles | Opened EX-Vault 6156 | -9/Exiles | Warned to stay clear of 0b10 Research branches 6193 | -9/Exiles | Attacked by the Exiles 6334 | -9/Exiles | Core integrity fell below 50% 6398 | -9/Exiles | Core integrity fell below 20% 6405 | -9/Exiles | Destroyed 8R-AWN 6410 | -9/Exiles | Found Prototype Ballistic Gun 6410 | -9/Exiles | Identified 8R-AWN's Boregun 6413 | -9/Exiles | Found 8R-AWN's Boregun 6431 | -9/Exiles | Found Prototype Device 6431 | -9/Exiles | Identified AS-neutralizer No. 17b 6440 | -9/Exiles | Identified Exp. Sensor Array 6451 | -9/Exiles | Found Prototype Processor 6451 | -9/Exiles | Identified Exp. Targeting Computer 6651 | -9/Exiles | Destroyed EX-BIN 6672 | -9/Exiles | Destroyed EX-HEX 6741 | -9/Exiles | Destroyed EX-DEC 6750 | -9/Exiles | Found Prototype Processor 6750 | -9/Exiles | Identified Exp. Core Analyzer 6809 | -9/Exiles | Build established: Scavenger-Mutant 6851 | -9/Exiles | Found YOLO Cannon 6856 | -9/Exiles | Found XL Autogun Array 6918 | -9/Exiles | Discovered new exit (range 10) 6923 | -9/Exiles | Stole two prototypes: YOLO Cannon, XL Autogun Array 6923 | -9/Exiles | Entered Mines 6974 | -8/Mines | Reached level 11 6996 | -8/Mines | Discovered new exit (range 14) 7218 | -8/Mines | Build established: Scavenger-Gunner 7259 | -8/Mines | Discovered new exit (range 11) 7384 | -8/Mines | Entered Materials 7385 | -8/Materials | Identified exit to Factory 7386 | -8/Materials | Reached level 12 7387 | -8/Materials | Upgraded with Power slot (x1) 7387 | -8/Materials | Upgraded with Utility slot (x1) 7392 | -8/Materials | Central database locked down 7582 | -8/Materials | Garrison activated, responded to threat 7600 | -8/Materials | Reached level 13 7640 | -8/Materials | Destroyed 10 combat bots 7666 | -8/Materials | Upgraded with Utility slot (x1) 7784 | -8/Materials | First assault squad dispatched 7823 | -8/Materials | Destroyed 17 combat bots 7893 | -8/Materials | Destroyed 8 combat bots 7897 | -8/Materials | Identified exit to Garrison 7932 | -8/Materials | Reached level 14 7945 | -8/Materials | Entered Garrison 7993 | -8/Garrison | Learned Factory security intel 8062 | -8/Garrison | Triggered checkpoint 8078 | -8/Garrison | Triggered checkpoint 8078 | -8/Garrison | Triggered checkpoint 8210 | -8/Garrison | Triggered checkpoint 8218 | -8/Garrison | Triggered checkpoint 8276 | -8/Garrison | Triggered checkpoint 8325 | -8/Garrison | Discovered exit to Factory (range 13) 8356 | -8/Garrison | Triggered checkpoint 8426 | -8/Garrison | Triggered checkpoint 8472 | -8/Garrison | Triggered checkpoint 8485 | -8/Garrison | Discovered exit to Factory (range 3) 8496 | -8/Garrison | Discovered exit to Factory (range 67) 8496 | -8/Garrison | Discovered exit to Factory (range 11) 8496 | -8/Garrison | Discovered exit to Factory (range 67) 8532 | -8/Garrison | Triggered checkpoint 8628 | -8/Garrison | Entered Factory 8628 | -7/Factory | Accompanied by 1 ally 8630 | -7/Factory | Reached level 15 8632 | -7/Factory | Found Scrap Engine 8646 | -7/Factory | Upgraded with Utility slot (x1) 8661 | -7/Factory | Garrison activated, responded to threat 8785 | -7/Factory | Fabricated Cmb. Airjet (x2) 9028 | -7/Factory | First assault squad dispatched 9063 | -7/Factory | Reached level 16 9207 | -7/Factory | Garrison activated, responded to threat 9257 | -7/Factory | Destroyed 7 combat bots 9657 | -7/Factory | Allied Derelicts emerged from ambush trap array 9751 | -7/Factory | Discovered new exit (range 16) 9752 | -7/Factory | Discovered new exit (range 8) 9894 | -7/Factory | Discovered new exit (range 12) 10068 | -7/Factory | Sucked down chute 10068 | -7/Factory | Entered Waste 10080 | -7/Waste | Spotted C-40 Crusher 10080 | -7/Waste | Destroyed C-40 Crusher 10083 | -7/Waste | EMP discharged 10101 | -7/Waste | Spotted C-40 Crusher 10104 | -7/Waste | Destroyed C-40 Crusher 10117 | -7/Waste | Spotted C-40 Crusher 10122 | -7/Waste | Destroyed C-40 Crusher 10124 | -7/Waste | Spotted C-40 Crusher 10124 | -7/Waste | Spotted C-40 Crusher 10134 | -7/Waste | Destroyed C-40 Crusher 10136 | -7/Waste | Destroyed C-40 Crusher 10147 | -7/Waste | Discovered new exit (range 16) 10148 | -7/Waste | Spotted C-40 Crusher 10156 | -7/Waste | Destroyed C-40 Crusher 10169 | -7/Waste | Entered Factory 10458 | -7/Factory | Adv. Hacking Suite fried by hacking feedback 10564 | -7/Factory | Reached level 17 10566 | -7/Factory | Garrison activated, responded to threat 10969 | -7/Factory | First assault squad dispatched 11914 | -7/Factory | Fabricated Cmb. Airjet (x2) 12381 | -7/Factory | Destroyed 10 combat bots 12524 | -7/Factory | Discovered new exit (range 6) 12533 | -7/Factory | Identified exit to Storage 12616 | -7/Factory | Fabricated Cmb. Airjet (x2) 12670 | -7/Factory | Discovered new exit (range 3) 12671 | -7/Factory | Identified exit to Lower Caves 12776 | -7/Factory | Reached level 18 12778 | -7/Factory | Upgraded with Propulsion slot (x1) 12837 | -7/Factory | Entered Storage 13237 | -7/Storage | First assault squad dispatched 13407 | -7/Storage | Met a pair of Derelict thieves 13528 | -7/Storage | Destroyed 8 combat bots 13589 | -7/Storage | Assisted by bots powering up and referring to "LRC-V3" 13623 | -7/Storage | Learned location of Armory (-3) 13658 | -7/Storage | Garrison activated, responded to threat 13701 | -7/Storage | Destroyed 15 combat bots 13723 | -7/Storage | Discovered new exit (range 9) 14238 | -7/Storage | Identified exit to Factory 14239 | -7/Storage | Entered Factory 14241 | -6/Factory | Reached level 19 14279 | -6/Factory | Identified exit to Lower Caves 14484 | -6/Factory | Garrison activated, responded to threat 14498 | -6/Factory | Fabricated Cmb. Airjet? 14690 | -6/Factory | Reached level 20 15077 | -6/Factory | Core integrity fell below 50% 15150 | -6/Factory | Build established: Scavenger-Mutant 15453 | -6/Factory | Entered Lower Caves 15523 | -6/Lower Caves | Found Alien Artifact 15523 | -6/Lower Caves | Identified Core Expander 15523 | -6/Lower Caves | Installed Core Expander, added new Weapon slot 15537 | -6/Lower Caves | Learned Factory terminal intel 15586 | -6/Lower Caves | Identified exit to Lower Caves 15610 | -6/Lower Caves | Learned location of 1 exit from Factory 15622 | -6/Lower Caves | Entered another Lower Caves area 15622 | -6/Lower Caves | Spotted KN-8SI(f) 15622 | -6/Lower Caves | Spotted 3X-GWD(f) 15623 | -6/Lower Caves | Encountered a Master Thief 15623 | -6/Lower Caves | Encountered a Master Thief 15626 | -6/Lower Caves | Adv. Weapon Cycler stolen by Master Thief 15627 | -6/Lower Caves | Destroyed 3X-GWD(f) 15631 | -6/Lower Caves | Destroyed KN-8SI(f) 15633 | -6/Lower Caves | Spotted I5-A6N(f) 15634 | -6/Lower Caves | Encountered a Master Thief 15646 | -6/Lower Caves | Exp. Heat Sink stolen by Master Thief 15711 | -6/Lower Caves | Spotted B-75 Beast 15739 | -6/Lower Caves | Destroyed B-75 Beast 15783 | -6/Lower Caves | Discovered new exit (range 5) 15784 | -6/Lower Caves | Identified exit to Zion 15784 | -6/Lower Caves | Entered Zion 15795 | -6/Zion | System corruption cleaned by Quarantine Array 15826 | -6/Zion | Discovered new exit (range 9) 15897 | -6/Zion | Given A8's code to call for help 16100 | -6/Zion | Visited the Megawrench Repair Shop 16100 | -6/Zion | Megawrench repaired 2 parts 16167 | -6/Zion | Destroyed Imprinter 16168 | -6/Zion | Attacked by Zionites 16195 | -6/Zion | Extracted access codes from Imprinter's data core 16520 | -6/Zion | 99-TNT came to Zion's defense 16560 | -6/Zion | Discovered new exit (range 3) 16560 | -6/Zion | Saw the warning signs outside the Deep Caves entrance 16561 | -6/Zion | Identified exit to Deep Caves 16562 | -6/Zion | Entered Deep Caves 16563 | -6/Deep Caves | Met 5H-AD0 16564 | -6/Deep Caves | Reached level 21 16670 | -6/Deep Caves | Z-Facility disabled 16810 | -6/Deep Caves | Found Prototype Protection 16810 | -6/Deep Caves | Identified Zio. Weapon Casing 16820 | -6/Deep Caves | Found Zio. Weapon Casing 16821 | -6/Deep Caves | Found Zio. Weapon Casing 17077 | -6/Deep Caves | Spotted as-87720 17079 | -6/Deep Caves | Triggered Deep Caves wall 17079 | -6/Deep Caves | Spotted AS-79316 17089 | -6/Deep Caves | Core integrity fell below 20% 17107 | -6/Deep Caves | Discovered new exit (range 7) 17109 | -6/Deep Caves | Identified exit to Proximity Caves 17109 | -6/Deep Caves | Entered Proximity Caves 17242 | -5/Proximity Caves | Attracted the attention of an 0b10 base 17344 | -5/Proximity Caves | Acquired the password to a Derelict Tinkerer's latest research 17416 | -5/Proximity Caves | Found Prototype Special Weapon 17447 | -5/Proximity Caves | Discovered new exit (range 5) 17448 | -5/Proximity Caves | Identified exit to Factory 17448 | -5/Proximity Caves | Entered Factory 17449 | -5/Factory | Identified exit to Upper Caves 17449 | -5/Factory | Core integrity fell below 50% 17450 | -5/Factory | Loaded intel: 25 terminal locations 17450 | -5/Factory | Reached level 22 17450 | -5/Factory | Upgraded with Power slot (x1) 17450 | -5/Factory | Upgraded with Utility slot (x1) 17560 | -5/Factory | Core integrity fell below 20% 17703 | -5/Factory | Destroyed 7 combat bots 17712 | -5/Factory | Reached level 23 17745 | -5/Factory | Destroyed 9 combat bots 17984 | -5/Factory | Fabricated Cld. Plasma Cannon (x1) 18048 | -5/Factory | First assault squad dispatched 18053 | -5/Factory | Garrison activated, responded to threat 18116 | -5/Factory | Spotted B-75 Beast 18170 | -5/Factory | Build established: Hacker-Sprinter 18343 | -5/Factory | Fabricated Cld. Plasma Cannon? 18679 | -5/Factory | Reached level 24 18805 | -5/Factory | Sucked down chute 18805 | -5/Factory | Entered Waste 18806 | -5/Waste | Met a frightened Derelict 18820 | -5/Waste | Spotted C-40 Crusher 18825 | -5/Waste | Spotted C-40 Crusher 18826 | -5/Waste | Spotted C-40 Crusher 18827 | -5/Waste | Spotted C-40 Crusher 18831 | -5/Waste | Destroyed C-40 Crusher 18834 | -5/Waste | Destroyed C-40 Crusher 18867 | -5/Waste | Spotted C-40 Crusher 18876 | -5/Waste | Spotted C-40 Crusher 18881 | -5/Waste | Destroyed C-40 Crusher 18922 | -5/Waste | Warlord forces began an assault 18923 | -5/Waste | Destroyed C-40 Crusher 18927 | -5/Waste | Allies destroyed C-40 Crusher 18929 | -5/Waste | Destroyed C-40 Crusher 19024 | -5/Waste | Discovered new exit (range 12) 19028 | -5/Waste | Identified exit to Factory 19079 | -5/Waste | Entered Factory 19079 | -5/Factory | Accompanied by 15 allies 19379 | -5/Factory | First assault squad dispatched 19563 | -5/Factory | Fabricated Cmb. Linear Gravjet? 19747 | -5/Factory | Entered Upper Caves 19747 | -5/Upper Caves | Accompanied by 1 ally 19756 | -5/Upper Caves | Learned Factory non-interactive machine intel 19836 | -5/Upper Caves | Discovered new exit (range 11) 19838 | -5/Upper Caves | Identified exit to Upper Caves 19839 | -5/Upper Caves | Entered another Upper Caves area 19926 | -5/Upper Caves | Destroyed 9 combat bots 19968 | -5/Upper Caves | Discovered new exit (range 9) 19970 | -5/Upper Caves | Identified exit to Warlord 19971 | -5/Upper Caves | Entered Warlord 19973 | -5/Warlord | Reached level 25 19982 | -5/Warlord | System corruption cleaned by Quarantine Array 19982 | -5/Warlord | Upgraded with Utility slot (x1) 20050 | -5/Warlord | Received a Watcher feed algorithm from an ecstatic Tinkerer 20104 | -5/Warlord | Visited the Vortex Lab 20106 | -5/Warlord | Found Prototype Energy Gun 20106 | -5/Warlord | Identified Vortex Rail 20107 | -5/Warlord | Warlord's base attacked by MAIN.C 20108 | -5/Warlord | Found Vortex Rail 20138 | -5/Warlord | Met Warlord 20153 | -5/Warlord | Found Prototype Device 20153 | -5/Warlord | Identified Exp. Cloaking Device 20159 | -5/Warlord | Found Prototype Device 20159 | -5/Warlord | Identified Exp. Focal Shield 20161 | -5/Warlord | Found Prototype Hackware 20161 | -5/Warlord | Identified System Mapper 20340 | -5/Warlord | Warlord forces counterattacked 20382 | -5/Warlord | Destroyed 7 combat bots 20452 | -5/Warlord | Discovered new exit (range 14) 20513 | -5/Warlord | Spotted Executioner 20515 | -5/Warlord | Destroyed Executioner 20618 | -5/Warlord | Spotted Executioner 20619 | -5/Warlord | Spotted Striker 20761 | -5/Warlord | Destroyed 7 combat bots 20782 | -5/Warlord | Warlord base infiltrated, sounded retreat 20804 | -5/Warlord | Found Prototype Ballistic Cannon 20804 | -5/Warlord | Identified Hvy. Autocannon 20820 | -5/Warlord | Spotted Striker 20836 | -5/Warlord | Identified exit to Proximity Caves 20927 | -5/Warlord | Spotted Striker 20927 | -5/Warlord | Spotted Striker 20929 | -5/Warlord | Destroyed Striker 20952 | -5/Warlord | Entered Proximity Caves 20952 | -4/Proximity Caves | Accompanied by 2 allies 20995 | -4/Proximity Caves | Learned 4 Research zone layouts 20998 | -4/Proximity Caves | Destroyed 7 combat bots 21031 | -4/Proximity Caves | Attracted the attention of an 0b10 outpost 21076 | -4/Proximity Caves | Destroyed 9 combat bots 21184 | -4/Proximity Caves | Discovered new exit (range 5) 21186 | -4/Proximity Caves | Identified exit to Factory 21272 | -4/Proximity Caves | Entered Factory 21272 | -4/Factory | Accompanied by 3 allies 21273 | -4/Factory | Loaded intel: 262 non-interactive machine locations 21274 | -4/Factory | Reached level 26 21315 | -4/Factory | Identified exit to Upper Caves 21315 | -4/Factory | Identified exit to Extension 21522 | -4/Factory | First assault squad dispatched 21534 | -4/Factory | Entered Extension 21534 | -4/Extension | Accompanied by 3 allies 21536 | -4/Extension | Reached level 27 21547 | -4/Extension | Rescued a captive Derelict 21549 | -4/Extension | Upgraded with Utility slot (x1) 21671 | -4/Extension | Rescued a captive Derelict 21682 | -4/Extension | Spotted B-86 Titan 21688 | -4/Extension | Destroyed B-86 Titan 21698 | -4/Extension | Spotted B-86 Titan 21708 | -4/Extension | Destroyed B-86 Titan 21739 | -4/Extension | Destroyed 9 combat bots 21764 | -4/Extension | Rescued a captive Derelict 21770 | -4/Extension | Rescued a captive Derelict 21784 | -4/Extension | First assault squad dispatched 21784 | -4/Extension | Disrupted transfer network 21804 | -4/Extension | Rescued A7 21879 | -4/Extension | Rescued a captive Derelict 21880 | -4/Extension | Rescued a captive Derelict 21899 | -4/Extension | Rescued a captive Derelict 21906 | -4/Extension | Discovered new exit (range 10) 21906 | -4/Extension | Discovered new exit (range 6) 21911 | -4/Extension | Disrupted transfer network 21926 | -4/Extension | Identified exit to Cetus 21931 | -4/Extension | Reached level 28 21977 | -4/Extension | Entered Cetus 21977 | -4/Cetus | Accompanied by 13 allies (A7) 21982 | -4/Cetus | Acquired a Cetus Manufacturing Module code from A7 21983 | -4/Cetus | Spotted Cetus Guard 21983 | -4/Cetus | Spotted Cetus Guard 21983 | -4/Cetus | Spotted Cetus Guard 21983 | -4/Cetus | Spotted Cetus Guard 21984 | -4/Cetus | Cetus Manufacturing Module disabled 21985 | -4/Cetus | Destroyed Cetus Guard 21986 | -4/Cetus | Destroyed Cetus Guard 21989 | -4/Cetus | Destroyed Cetus Guard 21992 | -4/Cetus | Destroyed Cetus Guard 22028 | -4/Cetus | Discovered new exit (range 20) 22043 | -4/Cetus | Destroyed 7 combat bots 22046 | -4/Cetus | Escorted A7 to Cetus Mainframe 22058 | -4/Cetus | Failed to start Cetus Manufacturing Module 22070 | -4/Cetus | Spotted Cetus Guard 22070 | -4/Cetus | Spotted Cetus Guard 22070 | -4/Cetus | Spotted Cetus Guard 22070 | -4/Cetus | Spotted Cetus Guard 22073 | -4/Cetus | Destroyed Cetus Guard 22076 | -4/Cetus | Destroyed Cetus Guard 22077 | -4/Cetus | Destroyed Cetus Guard 22079 | -4/Cetus | Destroyed Cetus Guard 22080 | -4/Cetus | Discovered new exit (range 19) 22084 | -4/Cetus | Met Revision 17 22164 | -4/Cetus | Destroyed A7 22171 | -4/Cetus | Extracted ID and sensor layout for unrecognized location from A7's data core 22186 | -4/Cetus | Identified exit to Archives 22209 | -4/Cetus | Entered Archives 22209 | -4/Archives | Accompanied by 12 allies 22218 | -4/Archives | Build established: Hacker-Scout 22228 | -4/Archives | Discovered new exit (range 20) 22234 | -4/Archives | Identified exit to Hub_04(d) 22264 | -4/Archives | Entered Hub_04(d) 22264 | -4/Hub_04(d) | Accompanied by 12 allies 22293 | -4/Hub_04(d) | Network Hub disabled 22293 | -4/Hub_04(d) | Network Hub disabled 22300 | -4/Hub_04(d) | Spotted Lightning 22301 | -4/Hub_04(d) | Spotted Lightning 22310 | -4/Hub_04(d) | Discovered new exit (range 13) 22314 | -4/Hub_04(d) | Destroyed Lightning 22318 | -4/Hub_04(d) | Found Exp. Targeting Computer 22325 | -4/Hub_04(d) | Spotted Lightning 22342 | -4/Hub_04(d) | Destroyed Lightning 22354 | -4/Hub_04(d) | Destroyed Lightning 22375 | -4/Hub_04(d) | Destroyed 10 combat bots 22383 | -4/Hub_04(d) | Found Prototype Energy Cannon 22383 | -4/Hub_04(d) | Identified EMDS 22424 | -4/Hub_04(d) | Identified exit to Research 22503 | -4/Hub_04(d) | Disrupted transfer network 22504 | -4/Hub_04(d) | Spotted B-86 Titan 22514 | -4/Hub_04(d) | First assault squad dispatched 22518 | -4/Hub_04(d) | Destroyed B-86 Titan 22539 | -4/Hub_04(d) | Destroyed 7 combat bots 22560 | -4/Hub_04(d) | Reached level 29 22567 | -4/Hub_04(d) | Network Hub disabled 22581 | -4/Hub_04(d) | Spotted Lightning 22581 | -4/Hub_04(d) | Spotted Lightning 22584 | -4/Hub_04(d) | Spotted Lightning 22589 | -4/Hub_04(d) | System corruption reached 10% 22593 | -4/Hub_04(d) | Entered Research 22593 | -3/Research | Accompanied by 1 ally 22594 | -3/Research | Identified exit to Armory 22595 | -3/Research | Identified exit to Research 22601 | -3/Research | Upgraded with Utility slot (x1) 22656 | -3/Research | Destroyed 8 combat bots 22843 | -3/Research | First assault squad dispatched 22887 | -3/Research | Identified exit to Testing 22997 | -3/Research | Core integrity fell below 50% 23020 | -3/Research | Entered Testing 23020 | -3/Testing | Accompanied by 1 ally 23145 | -3/Testing | Discovered exit to Research (range 18) 23155 | -3/Testing | Reached level 30 23157 | -3/Testing | Found Prototype Energy Cannon 23157 | -3/Testing | Identified Potential Cannon 23192 | -3/Testing | Found Prototype Device 23192 | -3/Testing | Identified Exp. Thermal Shield 23227 | -3/Testing | P-80 Master assimilated allied Administrator 8a 23254 | -3/Testing | Found System Mapper 23350 | -3/Testing | Central database locked down 23355 | -3/Testing | Spotted Striker 23356 | -3/Testing | Spotted Striker 23384 | -3/Testing | Destroyed Striker 23387 | -3/Testing | Spotted Alpha 7 23397 | -3/Testing | Core integrity fell below 20% 23400 | -3/Testing | Destroyed Striker 23454 | -3/Testing | Destroyed Alpha 7 23607 | -3/Testing | Build established: Hacker-Sprinter 23688 | -3/Testing | Found Prototype Processor 23690 | -3/Testing | Found Exp. Core Analyzer 23779 | -3/Testing | System corruption reached 10% 23810 | -3/Testing | Entered Research 23810 | -2/Research | Warlord forces began assault on 0b10 23825 | -2/Research | Spotted B-90 Cyclops 23831 | -2/Research | Destroyed B-90 Cyclops 23831 | -2/Research | Reached level 31 23838 | -2/Research | Found Quantum Capacitor 23849 | -2/Research | Met up with Warlord 23850 | -2/Research | Identified exit to Quarantine 23901 | -2/Research | Fabricated Enh. Nova Cannon (x1) 23920 | -2/Research | Research machine network offline 24048 | -2/Research | Crushed by falling debris 24109 | -2/Research | Spotted Striker 24133 | -2/Research | Entered Quarantine 24135 | -2/Quarantine | Reached level 32 24143 | -2/Quarantine | Cryocooling Duct disabled 24158 | -2/Quarantine | Ambient heat levels rising (+20) 24158 | -2/Quarantine | Non-combat units ordered to evacuate 24180 | -2/Quarantine | Found Alien Artifact 24183 | -2/Quarantine | Found Alien Artifact 24277 | -2/Quarantine | Destroyed 10 combat bots 24449 | -2/Quarantine | Found Alien Artifact 24449 | -2/Quarantine | Identified Core Reset Matrix 24449 | -2/Quarantine | Identified Transdimensional Reconstructor 24449 | -2/Quarantine | Identified Hpw. Transdimensional Reconstructor 24449 | -2/Quarantine | Used Core Reset Matrix 24453 | -2/Quarantine | Detected hypermatrix surge 24453 | -2/Quarantine | Sensed 11 artifacts in vicinity 24522 | -2/Quarantine | Met incapacitated Sigix Warrior 24522 | -2/Quarantine | Lockdown squad dispatched 24552 | -2/Quarantine | Spotted Lightning 24555 | -2/Quarantine | Spotted Lightning 24556 | -2/Quarantine | Spotted Lightning 24583 | -2/Quarantine | Destroyed Lightning 24597 | -2/Quarantine | System corruption reached 10% 24601 | -2/Quarantine | Reached level 33 24601 | -2/Quarantine | Destroyed Lightning 24614 | -2/Quarantine | Destroyed Lightning 24705 | -2/Quarantine | Found Prototype Device 24705 | -2/Quarantine | Identified Exp. EM Disruption Field 24781 | -2/Quarantine | Build established: Hacker-Mutant 25086 | -2/Quarantine | Found Subatomic Replicator 25140 | -2/Quarantine | Spotted Fortress 25184 | -2/Quarantine | Discovered new exit (range 5) 25186 | -2/Quarantine | Identified exit to Section 7 25263 | -2/Quarantine | Entered Section 7 25264 | -2/Section 7 | Sensed 20 artifacts in vicinity 25278 | -2/Section 7 | Found Integrated Mediator 25278 | -2/Section 7 | Installed Integrated Mediator, increased core attachment efficiency. 25321 | -2/Section 7 | Found Integrated Reactor 25321 | -2/Section 7 | Installed Integrated Reactor, increased core energy generation (+10) 25424 | -2/Section 7 | Found Microwarp Drive 25458 | -2/Section 7 | Found Integrated Dissipator 25458 | -2/Section 7 | Installed Integrated Dissipator, increased core heat dissipation (+20) 25460 | -2/Section 7 | Found Integrated Dissipator 25460 | -2/Section 7 | Installed Integrated Dissipator, increased core heat dissipation (+20) 25462 | -2/Section 7 | Found Integrated Dissipator 25462 | -2/Section 7 | Installed Integrated Dissipator, increased core heat dissipation (+20) 25485 | -2/Section 7 | Found LRC Insulator 25485 | -2/Section 7 | Installed LRC Insulator, gained EM resistance (25) 25519 | -2/Section 7 | Spotted B-99 Colossus 25551 | -2/Section 7 | Destroyed Executioner 25552 | -2/Section 7 | Spotted Executioner 25552 | -2/Section 7 | Destroyed Executioner 25579 | -2/Section 7 | Spotted Striker 25580 | -2/Section 7 | Spotted Striker 25600 | -2/Section 7 | Used Subatomic Replicator to replicate Drained L-Cannon 25642 | -2/Section 7 | Found Sigix Sheargun 25763 | -2/Section 7 | First assault squad dispatched 25898 | -2/Section 7 | Found Sigix Sheargun 25926 | -2/Section 7 | Found Exp. Core Analyzer 25964 | -2/Section 7 | Destroyed B-99 Colossus 25977 | -2/Section 7 | Found Prototype Ballistic Gun 25977 | -2/Section 7 | Identified Multirail 26048 | -2/Section 7 | Reached level 34 26050 | -2/Section 7 | Destroyed Alpha 7 26055 | -2/Section 7 | Destroyed Alpha 7 26089 | -2/Section 7 | Found Multirail 26101 | -2/Section 7 | Destroyed 7 combat bots 26132 | -2/Section 7 | Destroyed B-90 Cyclops 26158 | -2/Section 7 | Found Integrated Mediator 26158 | -2/Section 7 | Installed Integrated Mediator, increased core attachment efficiency. 26197 | -2/Section 7 | Discovered new exit (range 10) 26200 | -2/Section 7 | Build established: Generator-Gunner 26202 | -2/Section 7 | Identified exit to Access 26205 | -2/Section 7 | Entered Access 26325 | -1/Access | Reached level 35 26405 | -1/Access | Spotted B-99 Colossus 26405 | -1/Access | Destroyed B-99 Colossus 26406 | -1/Access | Destroyed B-99 Colossus 26455 | -1/Access | First assault squad dispatched 26557 | -1/Access | High security lockdown imminent 26557 | -1/Access | Reached level 36 26576 | -1/Access | Energy Cycler disabled 26628 | -1/Access | Destroyed 15 combat bots 26637 | -1/Access | High security lockdown engaged 26717 | -1/Access | Discovered new exit (range 5) 26767 | -1/Access | Destroyed 14 combat bots 26789 | -1/Access | Build established: Generator-Mutant 26808 | -1/Access | Destroyed 10 combat bots 26808 | -1/Access | Reached level 37 26808 | -1/Access | Spotted Investigator 26809 | -1/Access | Scanned by Researcher 26811 | -1/Access | Destroyed Investigator 26837 | -1/Access | Identified exit to Command 26837 | -1/Access | Entered Command 26969 | -1/Command | Disengaged cave seal 26971 | -1/Command | Welcomed Warlord to Command 27003 | -1/Command | Spotted M Guard 27003 | -1/Command | Spotted M Guard 27003 | -1/Command | Spotted Combat Programmer 27004 | -1/Command | Destroyed Combat Programmer 27008 | -1/Command | Destroyed Combat Programmer 27010 | -1/Command | Destroyed M Guard 27013 | -1/Command | Warlord commented on Warlord statues 27014 | -1/Command | Destroyed M Guard 27014 | -1/Command | All MAIN.C guards destroyed 27033 | -1/Command | Found Prototype Reactor 27033 | -1/Command | Identified Zero-point Reactor 27039 | -1/Command | Found Zero-point Reactor 27059 | -1/Command | Found Exp. Targeting Computer 27087 | -1/Command | First assault squad dispatched 27142 | -1/Command | Met MAIN.C 27143 | -1/Command | 0b10 Conduit disabled 27151 | -1/Command | Destroyed MAIN.C Shell 27153 | -1/Command | MAIN.C activated Command garrisons 27155 | -1/Command | Reached level 38 27155 | -1/Command | Destroyed MAIN.C 27158 | *** | Destroyed 0B10! Last Messages --------------- 27151_ MAIN.C destroyed. 27151_ MAIN.C's core emerges from the rubble. MAIN.C: Okay, we do this the hard way. At our weakest we defeated an entire Sigix starship! Did you really think you could overcome the vast resources of 0b10?! You don't stand a chance against what's coming. 27153_ ALERT: All Command garrisons activated. ZY-L1N: Not so powerful now, are you, MAIN.C! 27155_ VM-YTP(s) Unknown Ballistic Gun blasted off. 27155_ VM-YTP(s) destroyed. 27155_ Quantum Shear penetrates MAIN.C. 27155_ MAIN.C: "I hope you know you're still going to DIE HERE WITH ME!" 27155_ Reached level 38. Heavy Barrier opened. 27155_ MAIN.C destroyed. 27158_ Protomatter-13 decays. ZY-L1N: Victory! Sure there's still lots to do, but without MAIN.C at the helm 0b10 doesn't stand a chance. We've got this... Map ----- +----------------------------------------------------+ | ?????????????????????????????????????????????????? | | ?????????????????????????????????????????????????? | | ?????????????????????????????????????????????????? | | ?????????????????????????????????????????????????? | | ?????????????????????????????????????????????????? | | ?????????????????????????????????????????????????? | | ?????????????????????????????????????????????????? | | ?????????????????????????????????????????????????? | | ?????????????????????????????????????????????????? | | ?????????????????????????????????????????????????? | | ?????????????????????????????????????????????????? | | ?????????????????????????????????????????????????? | | ?????????????????????????????????????????????????? | | ?????????????????????????????????????????????????? | | ?????????????????????????????????????????????????? | | ?????????????????????????????????????????????????? | | ????????????????################?????????????????? | | ??????????????""" """" ##????????????????? | | ??????????????? "" ;?????????????????? | | ??????????????" "" ################### | | ?????????????"""""""" / | | ????????????? " """ g/ L | | ??????????????""""" ! gds[%/ W | | ??????????????"""" =$[ l*sl################### | | ?????????# " """" !!%*l lg[#?????????????????# | | ?????????# " [=!@ s #?????????????????# | | ?????????# " * l ""#?????????????????# | | ?????????#"""""" " % """"""#?????????????????# | | ???????????" """"""#???????????????### | | ?????????# """"""#???????????????# " | | ?????????# " " " " #???????????????### | | ?????????# " " " " #????????????????#" | | ????????? " " " """" " #????????????????## | | ????????? " " " " """" #???????????????# " | | ????????? [% " " " " #???????????????### | | ?????????? ="?""""""" " ??????????????????? | | ?????????? ???""??" """"?""???????????????????? | | ?????????? ????????? ??????????????????????????? | | ?????????????????????##??????????????????????????? | | ?????????????????????????????????????????????????? | | ?????????????????????????????????????????????????? | | ?????????????????????????????????????????????????? | | ?????????????????????????????????????????????????? | | ?????????????????????????????????????????????????? | | ?????????????????????????????????????????????????? | | ?????????????????????????????????????????????????? | | ?????????????????????????????????????????????????? | | ?????????????????????????????????????????????????? | | ?????????????????????????????????????????????????? | | ?????????????????????????????????????????????????? | +----------------------------------------------------+ Best States ------------- Heat Dissipation 253 Energy Generation 114 Energy Capacity 2016 Matter Stores 300 Matter Capacity 300 Sight Range 20 Robot Scan Range 30 Terrain Scan Density 10 Armor Coverage 450 Resistance: KI 20 Resistance: TH 20 Resistance: EM 25 Weapon Cycling 25 Evasion (%) 65 Targeting Accuracy 36 Core Analysis 12 Recoil Reduction 2 Offensive Hacking 45 Defensive Hacking 10 Item Schematics ----------------- Prc. Energy Filter | -2/Section 7 | Archive Spectral Analyzer | -2/Section 7 | Archive Exp. Thermal Generator | -2/Section 7 | Archive Cld. Antigrav System | -2/Section 7 | Archive Com. Linear Accelerator | -2/Section 7 | Archive Exp. Actuator Array | -2/Section 7 | Archive Robot Schematics ------------------ R-10 Processor | -2/Section 7 | Archive T-07 Excavator | -2/Section 7 | Archive R-06 Scavenger | -2/Section 7 | Archive Fabricated ------------ Cmb. Airjet | x2 | -7/Factory Cmb. Airjet | x2 | -7/Factory Cmb. Airjet | x2 | -7/Factory Cmb. Airjet | x2 | -6/Factory Cld. Plasma Cannon | x1 | -5/Factory Cld. Plasma Cannon | x1 | -5/Factory Cmb. Linear Gravjet | x2 | -5/Factory | Preloaded Enh. Nova Cannon | x1 | -2/Research Alien Tech Used ----------------- Core Expander Core Reset Matrix Integrated Mediator Integrated Reactor Microwarp Drive Integrated Dissipator LRC Insulator Subatomic Replicator Sigix Sheargun Achievements -------------- None Challenges ------------ None RPGLIKE | -11 -10 -10 -9 -9 -9 -8 -8 -8 -7 -7 -7 -7 -6 -6 -6 -6 -6 -5 -5 -5 -5 -5 -5 -5 -4 -4 -4 -4 -4 -4 -3 -3 -2 -2 -2 -1 -1 --------- Run | Scr Mat Min Mat Min Exi Min Mat Gar Fac Was Fac Sto Fac Low Low Zio Dee Pro Fac Was Fac Upp Upp War Pro Fac Ext Cet Arc Hub Res Tes Res Qua Sec Acc Com Levels Raised 37 | . 3 1 4 . 1 1 3 . 2 . 2 . 2 . . . 1 . 3 . . . . 1 . 1 2 . . 1 . 1 1 2 1 3 1 XP Earned 59248 | 3250 4342 1866 5876 1070 147 2622 3360 900 3370 73 1671 1375 2307 244 289 152 287 921 3592 33 780 144 311 551 953 1474 1579 511 163 857 1066 812 2121 2088 1908 4032 2151 XP Spent 51785 | 2710 1440 2650 7850 . 1500 . 4800 . 2600 . 3450 . . . . . . 400 4050 . . . . 3200 . 500 3500 . . . 3800 260 . 5725 1750 . 1600 Upgrades 73 | 9 4 3 6 . 1 . 3 . 1 . 12 . . . . . . 4 4 . . . . 1 . 1 1 . . . 1 2 . 15 1 . 4 Power Slot 2 | . . . . . . . 1 . . . . . . . . . . . 1 . . . . . . . . . . . . . . . . . . Propulsion Slot 5 | 1 . 1 2 . . . . . . . 1 . . . . . . . . . . . . . . . . . . . . . . . . . . Utility Slot 12 | 2 . 1 2 . . . 2 . 1 . . . . . . . . . 1 . . . . 1 . . 1 . . . 1 . . . . . . Weapon Slot 2 | 1 1 . . . . . . . . . . . . . . . . . . . . . . . . . . . . . . . . . . . . Core Integrity 12 | 4 2 . . . . . . . . . . . . . . . . 4 . . . . . . . . . . . . . 2 . . . . . Heat Dissipation 1 | . . . . . . . . . . . . . . . . . . . 1 . . . . . . . . . . . . . . . . . . Energy Generation 1 | . . . . . . . . . . . . . . . . . . . 1 . . . . . . . . . . . . . . . . . . Mass Support 1 | . . . . . . . . . . . . . . . . . . . . . . . . . . . . . . . . . . 1 . . . Inventory Capacity 7 | 1 1 1 2 . 1 . . . . . . . . . . . . . . . . . . . . . . . . . . . . . 1 . . Sight Range 4 | . . . . . . . . . . . . . . . . . . . . . . . . . . . . . . . . . . . . . 4 Sensor Range 15 | . . . . . . . . . . . 9 . . . . . . . . . . . . . . . . . . . . . . 6 . . . Hack Attack % 1 | . . . . . . . . . . . 1 . . . . . . . . . . . . . . . . . . . . . . . . . . Hack Defense % 2 | . . . . . . . . . . . 1 . . . . . . . . . . . . . . 1 . . . . . . . . . . . KI Resistance % 4 | . . . . . . . . . . . . . . . . . . . . . . . . . . . . . . . . . . 4 . . . TH Resistance % 4 | . . . . . . . . . . . . . . . . . . . . . . . . . . . . . . . . . . 4 . . . Protomatter Created 15135 | . 268 65 812 109 101 157 625 373 486 91 942 1140 585 97 83 122 111 119 535 340 203 38 122 470 698 343 875 225 150 593 253 638 215 843 621 1414 273 Integrity Restored 24128 | . 705 195 1263 484 303 450 1091 176 591 61 1268 1411 892 215 175 243 375 357 1095 915 636 114 108 589 286 460 623 285 61 1267 1017 1753 942 2361 387 639 335 Core 18985 | . 705 195 924 470 303 450 590 134 458 61 1017 1147 862 73 112 243 375 357 1095 915 399 114 108 315 123 241 269 110 24 879 913 1728 650 1778 243 274 331 Parts 5143 | . . . 339 14 . . 501 42 133 . 251 264 30 142 63 . . . . . 237 . . 274 163 219 354 175 37 388 104 25 292 583 144 365 4 Protomatter Decayed 8125 | . 33 23 338 169 . 7 162 393 327 70 503 781 261 21 21 41 95 . 14 84 252 . . 1159 450 211 462 87 50 275 29 53 113 127 408 982 124 Game ------ Seed BurstVariableDissipator Manual? 0 Play Time 04:52:29 Cumulative 1646.2 hours Start 2022.12.15 @ 17:50:46 End 2022.12.16 @ 13:16:41 Sessions 3 Manual Loads 0 Difficulty Rogue Special Mode Winter2019/RPGLIKE Game No. 577 Rogue 577 Adventurer 0 Explorer 0 Win Type 3 Total 122 Types 26/13/51/7/1/2/20/1/1 Lore% 97 Gallery% 97 Achievement% 86 Wizard Run 0 Options --------- ASCII 0 Keyboard 0 Movement Numpad Keybinds 0 Fullscreen 1 Font 18/SmallcapsGlow Map View 76x50 Tactical HUD 1 Map Filters NONE Filters NONE Steam 1 RUN: 927bf935-3d25-4cc6-be12-5408433d84b5